Cogmind - Beta 16.1 @@@ ROGUE MODE // 2026.01.20 @ 19:09:56 Player: C0-2MO Result: Fortifying 0b10! Performance ------------- Evolutions (9) 4500 Regions Visited (36) 7200 Robots Destroyed (331) 1655 Value Destroyed (31266) 31266 Prototype IDs (147) 2940 Alien Tech Used (4) 800 Bonus (42307) 42307 TOTAL SCORE: 90668 Bonus ------- High Alert Combat Kills 8562 Follower Combat Kills 8743 Hunted by Unchained 500 Entered Garrisons 1800 Used RIF Installer 5500 Network Hubs Disabled 400 Built Enhanced Grunts 300 A7 Reached Mainframe 300 Met R17 at Cetus 500 Met R17 at Research 2000 Destroyed MAIN.C Guards 500 Met MAIN.C 5000 Hacked MAIN.C 300 Destroyed MAIN.C Shell 5000 Win 3000 Friendly Fire -98 Cogmind --------- Core Integrity 1026/1600 Matter 300/300 Energy 1900/1900 System Corruption 0% Temperature Cool (0) Movement Treading (151) Location By MAIN.C's Side Parts ------- > --- POWER (3) -------- Singularity Reactor > --- PROPULSION (6) --- Experimental Biometal Medium Treads Experimental Heavy Siege Treads Experimental Heavy Siege Treads > --- UTILITY (13) ----- 2N-1CE's Frost Array Concept Antigrav Storage Unit Concept Chromion Battery Concept Countertargeting System Experimental Core Analyzer Quantum Capacitor Centrium Medium Armor Plating Concept RG22 Armor Experimental Focal Shield Concept Beam Splitter Concept Network Penetrator Experimental System Purifier > --- WEAPON (3) ------- Concept Disintegration Ray Sigix Broadsword > --- INVENTORY (25) --- Light Quantum Reactor Concept Zero-point Core Concept Thermoelectric Network Concept Thermoelectric Network Concept Chromion Battery (800) Concept NT7 Matterbank (750) Advanced Sensor Array Concept Recoil Nullifier Experimental Kinecellerator Experimental Weapon Cycler Experimental Transmission Jammer Improved Remote Force Field Improved Remote Force Field Concept Plasma Driver Cooled Directed Potential Cannon Heavy Hardcell Cannon Graviton Cannon Concept Helical Railcannon Advanced Remote Datajack Peak State ------------ > --- POWER ------------ Singularity Reactor > --- PROPULSION ------- Experimental Biometal Medium Treads Experimental Heavy Siege Treads Experimental Heavy Siege Treads > --- UTILITY ---------- 2N-1CE's Frost Array Concept Antigrav Storage Unit Concept Chromion Battery Concept Hypertargeting System Concept Countertargeting System Quantum Capacitor Advanced Powered Armor Concept RG22 Armor Experimental Focal Shield Concept Beam Splitter Concept Network Penetrator Experimental System Purifier > --- WEAPON ----------- Concept Disintegration Ray Sigix Broadsword > --- INVENTORY -------- Light Quantum Reactor Concept Zero-point Core Concept Thermoelectric Network Concept Thermoelectric Network Concept Chromion Battery Concept NT7 Matterbank Advanced Sensor Array Concept Recoil Nullifier Experimental Kinecellerator Experimental Weapon Cycler Experimental Transmission Jammer Improved Remote Force Field Improved Remote Force Field Subatomic Replicator Concept Disintegration Ray Concept Plasma Driver Cooled Directed Potential Cannon Heavy Hardcell Cannon Graviton Cannon Concept Helical Railcannon Advanced Remote Datajack [Rating: 291] Favorites ----------- Power Micro Nuclear Core Engine Light Ion Engine Power Core Micro Nuclear Core Reactor Light Antimatter Reactor Propulsion Improved Cesium-ion Thruster Treads Experimental Heavy Siege Treads Wheel Compact Wheel Hover Unit Experimental Antigrav System Flight Unit Improved Cesium-ion Thruster Utility Relay Coupler [Swarmer] Device 2N-1CE's Frost Array Storage Medium Storage Unit Processor Experimental Signal Interpreter Hackware Relay Coupler [Swarmer] Protection Advanced Powered Armor Weapon Sigix Broadsword Energy Gun Concept Disintegration Ray Energy Cannon Concept Plasma Driver Ballistic Gun Light Assault Rifle Ballistic Cannon Concept Helical Railcannon Launcher Precision Rocket Launcher Special Weapon Improved Remote Datajack Impact Weapon Great Maul Slashing Weapon Sigix Broadsword Piercing Weapon Heavy Pick Special Melee Weapon Improved Datajack Build | -11 -10 -10 -9 -9 -8 -8 -7 -7 -7 -7 -7 -7 -6 -6 -6 -6 -6 -6 -5 -5 -5 -5 -5 -5 -5 -5 -4 -4 -3 -3 -2 -2 -2 -2 -1 -1 ------- Run | Yrd Mat Min Mat Min Mat Gar Fac Was Fac Gar Fac Gar Fac Was Fac Gar Fac Gar Fac Gar Fac Ext Cet Arc Hub Gar Fac Gar Res Qua Res Tes Frg Gar Acc Com Slots Evolved 18 | . . . 2 . 2 . 2 . . . . . 2 . . . . . 2 . . . . . . . 2 . 2 . 2 . . . 2 . Power 2 | . . . . . . . . . . . . . . . . . . . . . . . . . . . . . . . . . . . 2 . Propulsion 4 | . . . 1 . 1 . . . . . . . . . . . . . 1 . . . . . . . . . 1 . . . . . . . Utility 11 | . . . 1 . 1 . 2 . . . . . 2 . . . . . 1 . . . . . . . 2 . 1 . 1 . . . . . Weapon 1 | . . . . . . . . . . . . . . . . . . . . . . . . . . . . . . . 1 . . . . . Parts Attached 332 | 7 9 . 20 . 2 7 22 5 3 6 . 11 15 . . 1 11 12 2 12 3 7 3 1 . 4 15 2 32 8 10 22 44 16 7 13 Power 33 | 1 1 . 3 . . . 3 . . 2 . 2 1 . . . 2 1 . . . 1 . . . . 1 . 4 . 2 . 3 . 5 1 Engine 9 | 1 1 . 3 . . . 2 . . . . 1 . . . . . . . . . . . . . . 1 . . . . . . . . . Core 13 | . . . . . . . 1 . . 2 . 1 1 . . . 2 1 . . . 1 . . . . . . 2 . . . 2 . . . Reactor 11 | . . . . . . . . . . . . . . . . . . . . . . . . . . . . . 2 . 2 . 1 . 5 1 Propulsion 70 | 2 3 . 9 . . 3 6 . . . . 1 3 . . . 4 2 . 2 . . . . . 1 5 . 9 1 1 . 14 3 . 1 Treads 8 | 2 . . . . . . . . . . . . . . . . . . . . . . . . . . . . . . . . 2 3 . 1 Leg . | . . . . . . . . . . . . . . . . . . . . . . . . . . . . . . . . . . . . . Wheel 1 | . 1 . . . . . . . . . . . . . . . . . . . . . . . . . . . . . . . . . . . Hover 7 | . . . . . . . . . . . . . . . . . . . . . . . . . . . . . . . . . 7 . . . Flight 54 | . 2 . 9 . . 3 6 . . . . 1 3 . . . 4 2 . 2 . . . . . 1 5 . 9 1 1 . 5 . . . Utility 164 | 2 3 . 3 . 1 3 11 3 2 3 . 5 6 . . 1 4 7 1 9 3 6 1 1 . 3 8 2 14 3 6 15 19 11 1 7 Device 58 | 1 2 . . . . . 2 2 . . . 3 . . . . 1 . 1 1 . . . 1 . . 4 . 4 2 3 13 12 . 1 5 Storage 14 | 1 . . 1 . . . 1 . . . . . 1 . . . . . . 2 . 2 . . . . . . 3 . . . 3 . . . Processor 15 | . 1 . 1 . . . 2 . 1 . . . 1 . . . . . . . . . . . . . 1 . 2 1 1 2 1 . . 1 Hackware 63 | . . . 1 . 1 3 6 . 1 3 . 2 4 . . 1 2 7 . 6 3 2 . . . 3 3 2 4 . 2 . 1 6 . . Protection 14 | . . . . . . . . 1 . . . . . . . . 1 . . . . 2 1 . . . . . 1 . . . 2 5 . 1 Artifact . | . . . . . . . . . . . . . . . . . . . . . . . . . . . . . . . . . . . . . Weapon 65 | 2 2 . 5 . 1 1 2 2 1 1 . 3 5 . . . 1 2 1 1 . . 2 . . . 1 . 5 4 1 7 8 2 1 4 Energy Gun 13 | 2 . . . . . . . 1 . 1 . . . . . . . . . . . . 1 . . . . . . . . 4 3 . . 1 Energy Cannon 7 | . . . . . . . . . . . . 1 . . . . . . . . . . . . . . . . 1 1 . . 2 1 1 . Ballistic Gun 8 | . 1 . 3 . . 1 . . . . . . . . . . . . . . . . 1 . . . . . . . . 2 . . . . Ballistic Cannon 10 | . . . 1 . . . . . . . . 1 . . . . . . . . . . . . . . . . 1 1 . 1 2 . . 3 Launcher 3 | . . . 1 . . . . 1 . . . . . . . . . 1 . . . . . . . . . . . . . . . . . . Special Weapon 10 | . . . . . . . . . . . . . 1 . . . 1 1 1 1 . . . . . . 1 . . 1 1 . 1 1 . . Impact Weapon 2 | . . . . . . . . . . . . 1 . . . . . . . . . . . . . . . . 1 . . . . . . . Slashing Weapon 7 | . 1 . . . . . 1 . 1 . . . 3 . . . . . . . . . . . . . . . . 1 . . . . . . Piercing Weapon 1 | . . . . . . . . . . . . . 1 . . . . . . . . . . . . . . . . . . . . . . . Special Melee Weapon 4 | . . . . . 1 . 1 . . . . . . . . . . . . . . . . . . . . . 2 . . . . . . . Unidentified Prototypes 71 | . . . 1 . . . 3 . . . . . 2 . . . . . . 1 . 1 3 1 . . . . 9 3 2 21 17 . . 7 Parts Lost 94 | . 5 . 10 . . 3 5 . . 2 . 4 2 . . 4 1 3 . 5 2 . . . . 8 . 7 3 . 1 1 19 3 3 3 Power 11 | . 1 . 2 . . . . . . 1 . 1 . . . . 1 . . . . . . . . 1 . 1 . . . . 1 . 2 . Propulsion 27 | . 2 . 6 . . 3 1 . . . . 1 . . . 1 . 1 . 1 1 . . . . 4 . 3 1 . 1 . 1 . . . Utility 37 | . . . . . . . 3 . . . . . 2 . . 2 . 2 . 4 1 . . . . 1 . 2 1 . . 1 14 2 . 2 Weapon 19 | . 2 . 2 . . . 1 . . 1 . 2 . . . 1 . . . . . . . . . 2 . 1 1 . . . 3 1 1 1 Highest Loss Streak 7 | . 3 . 4 . . 1 2 . . 1 . 3 2 . . 3 1 3 . 3 2 . . . . 7 . 7 2 . 1 1 6 2 3 1 To Critical Strikes 2 | . 1 . . . . . . . . . . . . . . . . . . . . . . . . . . . . . . . 1 . . . Average Backups 12 | 1 3 5 5 10 9 9 9 9 9 9 10 8 9 10 10 9 9 9 10 9 8 9 10 10 10 9 5 5 9 13 13 14 16 22 21 20 Power 1 | . 1 1 . 1 1 1 . 1 1 1 1 . 1 1 1 1 . . . . . . . . . . . . 1 2 1 1 . 3 1 2 Propulsion 1 | . . . 1 5 4 4 2 2 2 2 2 1 1 2 2 1 3 3 3 1 . 1 1 1 1 . . 1 1 2 2 3 2 . . . Utility 5 | . 1 1 1 1 1 1 4 3 2 3 4 4 3 3 3 3 2 3 3 3 3 4 5 5 5 5 3 4 4 4 5 5 6 10 12 11 Weapon 3 | . . 2 2 2 2 1 . 2 3 2 3 1 2 3 3 2 3 2 3 3 2 2 3 3 3 2 . . 1 2 1 1 4 7 6 5 Tool/Special . | . . . . . . . . . . . . . . . . . . . . . . . . . . . . . . . . . . . . . Unused Backups 31 | . 1 1 1 . . . 4 1 . 2 . . 2 . . . 1 . 1 . . . . . . . . . 1 3 1 1 5 1 . 5 Power 4 | . 1 . . . . . . . . . . . 1 . . . . . . . . . . . . . . . . 1 . . 1 . . . Propulsion 5 | . . . . . . . 1 . . 2 . . . . . . 1 . . . . . . . . . . . . . . . 1 . . . Utility 12 | . . . . . . . 1 1 . . . . . . . . . . . . . . . . . . . . . . . 1 3 1 . 5 Weapon 4 | . . 1 . . . . 1 . . . . . 1 . . . . . . . . . . . . . . . . . 1 . . . . . Tool/Special 6 | . . . 1 . . . 1 . . . . . . . . . . . 1 . . . . . . . . . 1 2 . . . . . . Average Slot Usage (%) 88 | . 82 100 80 88 91 99 94 90 94 92 92 93 94 100 100 94 95 94 90 88 95 97 98 100 100 91 85 87 91 93 86 85 82 83 83 73 Engine 1 | . 10 14 8 11 9 9 . . . . . . . . . . . . . . . . . . . . 4 3 . . . . . . . . Core 3 | . . . . . . . 6 7 7 6 7 7 6 6 6 6 5 6 5 5 5 5 5 5 5 4 . . 2 4 . . 2 4 4 1 Reactor 1 | . . . . . . . . . . . . . . . . . . . . . . . . . . . . . . . 3 4 1 . 7 5 Treads 2 | . 8 . . . . . . . . . . . . . . . . . . . . . . . . . . . . . . . . 15 12 12 Hover 1 | . . . . . . . . . . . . . . . . . . . . . . . . . . . . . . . . . 8 . . . Flight 18 | . 14 28 25 33 36 36 29 30 30 30 30 30 26 26 26 25 26 26 23 29 28 29 29 29 29 25 15 19 22 23 17 17 9 . . . Device 9 | . 9 14 8 . . . . 5 . . . 2 . . . . 1 . 4 1 . . . 3 5 2 8 11 8 10 10 13 19 18 18 23 Storage 5 | . 6 . 2 11 9 9 7 7 7 7 7 7 6 6 6 6 6 6 5 5 5 6 5 5 5 5 . . 3 4 4 4 6 8 8 7 Processor 3 | . 4 14 12 11 9 4 . 7 9 . . . 3 . . . . . . . . . . . . . 4 5 4 2 4 6 7 4 4 1 Hackware 25 | . . . 5 11 14 21 32 15 15 27 30 30 37 46 46 43 40 40 38 33 42 33 35 35 35 38 40 38 36 33 31 30 16 9 20 6 Protection 3 | . . . . . . . . . 7 7 7 3 1 . . . 2 . . . . 9 11 7 5 2 . . . 4 4 . . 13 1 9 Special Weapon 1 | . . . . . . . . . . . . . 2 6 6 4 3 5 5 5 4 4 3 5 5 3 4 2 . . 4 3 . . 2 . Slashing Weapon 5 | . 6 14 8 11 9 9 7 6 7 6 7 1 7 6 6 6 5 6 5 5 5 5 5 5 5 3 4 5 4 3 4 4 3 4 4 3 Peak Build Rating 291 | 9 9 8 17 16 25 29 50 48 47 50 45 52 65 63 63 65 65 63 67 77 79 81 85 85 85 85 99 97 121 141 156 170 252 262 269 291 Average Rating 121 | 5 6 8 11 16 22 26 43 42 44 45 45 45 60 63 63 60 60 59 65 68 73 76 77 83 85 75 83 89 104 122 151 160 196 255 261 277 On Entrance 75 | . 9 8 8 16 16 25 29 38 42 44 45 45 46 63 63 63 52 65 63 65 77 65 79 79 85 85 47 95 50 118 136 156 167 232 250 262 Avg Prop Armor Cover (%) 5 | . 20 . 6 . . . . . . . . . . . . . . . . 2 . . . . . . 8 8 6 1 . . 1 3 8 5 Naked Turns . | . . . . . . . . . . . . . . . . . . . . . . . . . . . . . . . . . . . . . Heaviest Build 175 | 13 13 7 15 15 16 18 21 24 23 26 20 26 23 23 23 29 26 23 25 25 27 36 31 30 29 29 14 14 37 44 55 54 87 125 107 175 Greatest Support 275 | 40 40 8 15 15 19 20 22 23 24 24 24 25 24 23 23 23 24 25 25 31 31 31 31 31 31 31 34 20 50 51 54 53 200 275 175 275 Greatest Overweight (x) 18 | 1 . . 1 . . . . 1 . 1 . 1 . . . 1 1 . . . . 1 . . . 1 1 . . . 1 1 18 . 1 . Average Overweight (x) . | . . . . . . . . . . . . . . . . . . . . . . . . . . . . . . . . . . . . . Largest Inventory Capacity 25 | 8 8 5 10 10 10 10 10 10 10 10 10 10 10 10 10 10 10 10 10 10 10 10 10 10 10 10 10 5 15 15 15 15 25 25 25 25 Average Capacity 13 | 6 6 5 6 10 10 10 10 10 10 10 10 10 10 10 10 10 10 10 10 10 10 10 10 10 10 10 5 5 11 15 15 15 18 25 25 25 Most Carried 25 | 2 5 5 10 10 10 10 10 10 10 10 10 10 10 10 10 10 10 10 10 10 10 10 10 10 10 10 9 5 15 15 15 15 25 25 25 25 Average Carried 13 | 1 3 4 5 10 9 9 9 9 9 9 10 8 9 10 10 9 9 9 10 9 8 9 10 10 10 9 5 5 10 14 14 14 16 24 23 22 Final Capacity 25 | 8 5 5 10 10 10 10 10 10 10 10 10 10 10 10 10 10 10 10 10 10 10 10 10 10 10 10 5 5 15 15 15 15 25 25 25 25 Final Carried 25 | 2 5 5 10 10 10 10 10 10 10 10 10 9 10 10 10 10 10 10 10 9 8 10 10 10 10 9 5 5 15 15 15 13 25 25 25 22 Class Distribution -------------------- 16% | Botlord-Sprinter 14% | Commander-Sprinter 10% | Mutant 9% | Bothacker-Sprinter 7% | Botlord-Mutant 7% | Hacker-Mutant 6% | Botlord-Ninja 6% | Botlord-Scout 4% | Scavenger-Mutant 4% | Scavenger-Sprinter 3% | Infiltrator-Mutant 3% | Sprinter Dominant Class ---------------- Scavenger-Mutant | -10/Materials Scavenger-Mutant | -10/Mines Scavenger-Mutant | -9/Materials Scavenger-Sprinter | -9/Mines Scavenger-Sprinter | -8/Materials Scavenger-Sprinter | -8/Garrison Bothacker-Sprinter | -7/Factory Hacker-Sprinter | -7/Waste Scientist-Sprinter | -7/Factory Commander-Sprinter | -7/Garrison Commander-Sprinter | -7/Factory Sprinter | -7/Garrison Bothacker-Sprinter | -6/Factory Bothacker-Sprinter | -6/Waste Bothacker-Sprinter | -6/Factory Botlord-Sprinter | -6/Garrison Botlord-Sprinter | -6/Factory Botlord-Sprinter | -6/Garrison Botlord-Sprinter | -5/Factory Botlord-Sprinter | -5/Garrison Commander-Sprinter | -5/Factory Commander-Sprinter | -5/Extension Commander-Sprinter | -5/Cetus Commander-Sprinter | -5/Archives Commander-Sprinter | -5/Hub_04(d) Botlord-Sprinter | -5/Garrison Botlord-Sprinter | -4/Factory Hacker-Mutant | -4/Garrison Botlord-Sprinter | -3/Research Botlord-Scout | -3/Quarantine Botlord-Scout | -2/Research Botlord-Ninja | -2/Testing Mutant | -2/Protoforge Mutant | -2/Garrison Botlord-Mutant | -1/Access Hacker-Mutant | -1/Command Resources | -11 -10 -10 -9 -9 -8 -8 -7 -7 -7 -7 -7 -7 -6 -6 -6 -6 -6 -6 -5 -5 -5 -5 -5 -5 -5 -5 -4 -4 -3 -3 -2 -2 -2 -2 -1 -1 ----------- Run | Yrd Mat Min Mat Min Mat Gar Fac Was Fac Gar Fac Gar Fac Was Fac Gar Fac Gar Fac Gar Fac Ext Cet Arc Hub Gar Fac Gar Res Qua Res Tes Frg Gar Acc Com Matter Collected 11630 | 270 98 . 388 . 20 75 284 185 60 172 . 243 220 . . 124 257 347 . 279 184 568 50 31 11 149 285 58 905 137 434 648 3472 356 60 1260 Remotely . | . . . . . . . . . . . . . . . . . . . . . . . . . . . . . . . . . . . . . Salvage Created 18947 | 118 312 47 609 . 21 106 708 . 73 559 . 373 346 . . 39 381 208 . 45 62 167 . . . 277 228 . 303 268 329 414 7314 2917 93 2630 Parts 778 | 5 12 1 49 . 3 2 33 . 3 28 . 18 17 . . 4 12 19 . 4 5 8 . . . 5 14 . 14 5 23 20 310 113 5 46 Haulers Intercepted 9 | . 1 . 4 . . . 2 . . . . . 1 . . . . . . . . . . . . . . . 1 . . . . . . . Recyclers Shooed 4 | . . . . . . . . . . . . . 1 . . . 1 . . . 1 . . . . . . . . 1 . . . . . . Parts Field Recycled . | . . . . . . . . . . . . . . . . . . . . . . . . . . . . . . . . . . . . . Retrieved Matter . | . . . . . . . . . . . . . . . . . . . . . . . . . . . . . . . . . . . . . Parts Self-Destructed . | . . . . . . . . . . . . . . . . . . . . . . . . . . . . . . . . . . . . . Prevented . | . . . . . . . . . . . . . . . . . . . . . . . . . . . . . . . . . . . . . Parts Restored 9 | . . . . . . . . . . . . . . . . . . . . . . . . . . . . . . . . . 9 . . . Faulty 9 | . . . . . . . . . . . . . . . . . . . . . . . . . . . . . . . . . 9 . . . Kills | -11 -10 -10 -9 -9 -8 -8 -7 -7 -7 -7 -7 -7 -6 -6 -6 -6 -6 -6 -5 -5 -5 -5 -5 -5 -5 -5 -4 -4 -3 -3 -2 -2 -2 -2 -1 -1 ------- Run | Yrd Mat Min Mat Min Mat Gar Fac Was Fac Gar Fac Gar Fac Was Fac Gar Fac Gar Fac Gar Fac Ext Cet Arc Hub Gar Fac Gar Res Qua Res Tes Frg Gar Acc Com Combat Hostiles Destroyed 263 | . 5 1 10 . . . 4 . 3 13 . 12 2 . . 2 4 12 . 2 1 2 . . . 6 . . . 2 4 1 102 40 1 34 Melee 43 | . . 1 3 . . . 4 . 3 4 . . 2 . . . 3 2 . 2 1 . . . . 1 . . . 1 4 1 7 3 . 1 Guns 41 | . 4 . . . . . . . . 6 . 5 . . . . . . . . . . . . . . . . . . . . 26 . . . Cannons 94 | . . . 3 . . . . . . . . 1 . . . 2 . . . . . 2 . . . 2 . . . 1 . . 48 29 1 5 AOE 29 | . . . 4 . . . . . . 2 . 4 . . . . . 10 . . . . . . . 3 . . . . . . 6 . . . Classes Destroyed 26 | 2 6 . 3 . . . . . . 3 . 2 . . . . . . . . 1 . . . . . . . . 1 . . 5 1 1 1 Worker 10 | . . . 3 . . . 2 . . . . . . . . . 2 . . . 1 . . . . . 1 . . . . . 1 . . . Builder 6 | . 1 . 1 . . . . . . . . . . . . . . . . . . . . . . . 2 . 1 . . . 1 . . . Tunneler 1 | 1 . . . . . . . . . . . . . . . . . . . . . . . . . . . . . . . . . . . . Hauler 9 | . 1 . 4 . . . 2 . . . . . 1 . . . . . . . . . . . . . . . 1 . . . . . . . Recycler 12 | 1 . . 1 . . . 3 . . . . . 1 . . . 1 . . . . . . . . . 1 . 1 1 . 2 . . . . Mechanic 7 | . 1 . 1 . . . 2 . . . . . . . . . . . . . . . . . . . . . . . . . 3 . . . Operator 8 | . . . 2 . 1 . 1 . . . . . 1 . . . . . . . . . . . . . . . 2 . . 1 . . . . Drone 3 | . . . . . . . . . . . . . . . . . . . . . . . . . . . . . . . . . 3 . . . Watcher 11 | . 1 . 1 . . . 2 . . . . . 1 . . . . . . . . 1 . . . . 1 . . . 1 1 1 1 . . Swarmer 44 | . 2 . 8 . . . 2 . 3 2 . 1 . . . 2 1 8 . 2 . . . . . . . . . . . . 1 12 . . Cutter 6 | . . . . . . . . . . 2 . . . . . . . 2 . . . . . . . . . . . . . . . 2 . . Saboteur 5 | . . . . . . . . . . . . 3 . . . . . . . . . . . . . . . . . . . . 2 . . . Grunt 55 | . 3 1 . . . . 1 . . 2 . 5 . . . . 3 2 . . . 2 . . . 2 . . . . 2 . 19 12 . 1 Brawler 10 | . . . . . . . . . . 4 . . . . . . . . . . . . . . . . . . . . . . 6 . . . Duelist 12 | . . . . . . . . . . . . . . . . . . . . . . . . . . . . . . . . . 12 . . . Protector 4 | . . . . . . . . . . . . 1 . . . . . . . . . . . . . . . . . . . . 3 . . . Researcher 5 | . . . . . . . . . . . . . . . . . . . . . . . . . . . . . . . . . 5 . . . Sentry 27 | . . . 2 . . . 1 . . 1 . 2 . . . . . . . . . . . . . 2 . . . . . . 11 8 . . Specialist 2 | . . . . . . . . . . . . . . . . . . . . . . . . . . . . . . 2 . . . . . . Hunter 8 | . . . . . . . . . . . . . . . . . . . . . 1 . . . . . . . . . . 1 6 . . . Programmer 32 | . . . . . . . . . . 2 . . 2 . . . . . . . . . . . . 2 . . . . 2 . 20 4 . . Heavy 1 | . . . . . . . . . . . . . . . . . . . . . . . . . . . . . . . . . . . 1 . Behemoth 1 | . . . . . . . . . . . . . . . . . . . . . . . . . . . . . . . . . . 1 . . M Guard 2 | . . . . . . . . . . . . . . . . . . . . . . . . . . . . . . . . . . . . 2 Enhanced Q-Series 28 | . . . . . . . . . . . . . . . . . . . . . . . . . . . . . . . . . . . . 28 Hotshot 4 | . . . . . . . . . . . . . . . . . . . . . . . . . . . . . . . . . 4 . . . Decapitator 6 | . . . . . . . . . . . . . . . . . . . . . . . . . . . . . . . . . 6 . . . Immortal 5 | . . . . . . . . . . . . . . . . . . . . . . . . . . . . . . . . . 5 . . . Combat Programmer 2 | . . . . . . . . . . . . . . . . . . . . . . . . . . . . . . . . . . . . 2 Alpha 7 2 | . . . . . . . . . . . . . . . . . . . . . . . . . . . . . . . . . 2 . . . V-Series 2 | . . . . . . . . . . . . . . . . . . . . . . . . . . . . . . . . . 2 . . . Savage 1 | . . . . . . . . . . . . . . . . . . . . . . . . . . . . . . . . . . 1 . . Guerrilla 1 | . . . . . . . . . . . . . . . . . . . . . . . . . . . . . . . . . . 1 . . Best Kill Streak 15 | 1 3 1 6 . 1 . 3 . 3 6 . 3 2 . . 2 3 10 . 2 1 2 . . . 4 2 . 1 2 2 2 15 11 1 6 Combat Bots Only 14 | . 2 1 6 . . . 2 . 3 6 . 3 1 . . 2 3 10 . 2 1 2 . . . 4 . . . 1 2 1 14 10 1 6 Max Kills in Single Turn 5 | 1 1 1 4 . 1 . 1 . 1 2 . 3 1 . . 1 1 5 . 1 1 1 . . . 2 1 . 1 1 1 1 5 2 1 1 Gunslinging 1 | . . . . . . . . . . 1 . . . . . . . . . . . . . . . . . . . . . . . . . . Exploded 5 | . . . 4 . . . . . . 1 . 3 . . . . . 5 . . . . . . . 2 . . . . . . 3 . . . Melee 1 | . . 1 1 . . . 1 . 1 1 . . 1 . . . 1 1 . 1 1 . . . . 1 . . . 1 1 1 1 1 . 1 Uniques/NPCs Destroyed 1 | . . . . . . . . . . . . . . . . . . . . . . . . . . . . . . . . . . . . 1 MAIN.C Shell (-1/Command) Combat | -11 -10 -10 -9 -9 -8 -8 -7 -7 -7 -7 -7 -7 -6 -6 -6 -6 -6 -6 -5 -5 -5 -5 -5 -5 -5 -5 -4 -4 -3 -3 -2 -2 -2 -2 -1 -1 -------- Run | Yrd Mat Min Mat Min Mat Gar Fac Was Fac Gar Fac Gar Fac Was Fac Gar Fac Gar Fac Gar Fac Ext Cet Arc Hub Gar Fac Gar Res Qua Res Tes Frg Gar Acc Com Hostile Shots Fired 1733 | . 86 14 114 . 2 28 63 . 9 28 . 60 34 . . 70 19 41 . 18 7 17 . . 9 84 26 37 5 18 44 28 563 132 8 169 Missed 662 | . 20 11 40 . 1 10 28 . 5 15 . 33 19 . . 26 8 14 . 6 3 4 . . 3 32 14 20 2 9 22 8 238 37 2 32 Hits 1071 | . 66 3 74 . 1 18 35 . 4 13 . 27 15 . . 44 11 27 . 12 4 13 . . 6 52 12 17 3 9 22 20 325 95 6 137 Melee 22 | . . . . . . . . . . 1 . . . . . . . . . 2 . . . . . . . 3 . . . . 14 2 . . Projectile 1049 | . 66 3 74 . 1 18 35 . 4 12 . 27 15 . . 44 11 27 . 10 4 13 . . 6 52 12 14 3 9 22 20 311 93 6 137 AOE 22 | . . . . . . . . . . 1 . 3 . . . . . 1 . 1 . . . . . . . . . . . . 2 2 . 12 Critical Strikes 61 | . 2 . . . . 1 1 . . . . 2 2 . . . 1 . . 2 . 1 . . . 2 1 3 . . . 5 26 1 1 10 Actively Blocked 18 | . . . . . . . . . . . . . . . . . . . . . . . . . . . 1 3 . . . 1 13 . . . Part Disruptions 12 | . . . . . . . . . . . . . . . . . . . . . . . . . . . . . . . . 1 3 . . 8 Damage Taken 23808 | . 672 34 766 . . 260 506 . 62 299 . 485 244 . . 496 167 447 . 339 157 238 39 . 96 1020 234 365 162 91 595 508 8085 2429 658 4354 Core 3374 | . 135 . 286 . . 15 199 . 15 54 . 125 63 . . 163 25 162 . 147 21 29 . . . 263 60 106 26 31 43 50 756 26 18 556 Absorbed by Shields 409 | . . . . . . 47 72 . . . . . . . . . 15 . . . . 84 11 . . 58 . . . . . . 30 . . 92 Reduced by Siege Mode 229 | . . . . . . . . . . . . . . . . . . . . . . . . . . . . . . . . . 146 . . 83 Redirected to Shielding 301 | . . . . . . . . . 20 63 . 29 23 . . . . . . . . . . . . . . . . 14 . . 152 . . . Ignored by Resistances 1533 | . . . . . . . . . . . . . . . . . . . . . . . . . 24 60 . . . . . . . . . 1449 Regen/Repaired (Parts) 6658 | . . . . . . . 17 49 39 99 . . 41 . . . . . 9 18 35 18 . . . . . . . . 488 295 3227 816 345 1162 Core Remaining (%) 63 | 100 . 46 . 28 . 97 . . . . . 43 . . . . . 51 . . . . . . . 54 . 85 . 94 . . . 39 . 64 Volleys Fired 1019 | 2 35 . 23 . . . . 5 . 12 . 34 3 . . 11 18 29 7 21 14 56 . 3 5 18 9 . . 10 27 14 371 105 21 166 Largest 2 | 2 2 . 2 . . . . 1 . 2 . 1 1 . . 1 1 1 1 1 1 1 . 1 1 1 1 . . 1 1 1 1 1 1 1 Hottest 300 | 90 90 . 68 . . . . 36 . 160 . 80 7 . . 51 80 43 7 7 43 51 . 7 7 51 7 . . 300 10 90 140 140 140 140 Shots Fired 1039 | 3 42 . 29 . . . . 5 . 17 . 34 3 . . 11 18 29 7 21 14 56 . 3 5 18 9 . . 10 27 14 371 105 22 166 Gun 380 | 3 42 . 13 . . . . . . 13 . 22 . . . . 3 . . . . . . . . . . . . . . 1 192 . . 91 Cannon 419 | . . . 15 . . . . . . . . 8 . . . 8 . . . . . 7 . . . 13 . . . 8 . . 177 96 19 68 Launcher 25 | . . . 1 . . . . 5 . 4 . 4 . . . . . 5 . . 1 . . . . 5 . . . . . . . . . . Special 215 | . . . . . . . . . . . . . 3 . . 3 15 24 7 21 13 49 . 3 5 . 9 . . 2 27 13 2 9 3 7 Kinetic 267 | . 8 . 28 . . . . . . . . 2 . . . 8 . . . . . 7 . . . 13 . . . 7 . . 183 8 . 3 Thermal 369 | 2 24 . . . . . . . . 13 . 22 . . . . 3 . . . . . . . . . . . . 1 . 1 131 88 19 65 Explosive 25 | . . . 1 . . . . 5 . 4 . 4 . . . . . 5 . . 1 . . . . 5 . . . . . . . . . . Electromagnetic 65 | 1 10 . . . . . . . . . . 6 . . . . . . . . . . . . . . . . . . . . 48 . . . Entropic 98 | . . . . . . . . . . . . . . . . . . . . . . . . . . . . . . . . . 7 . . 91 Robot Hit Streak 33 | 3 6 . 8 . . . . 2 . 19 . 26 2 . . 3 11 12 8 14 14 15 . 18 21 9 10 . . 14 8 12 15 32 9 33 Robot Miss Streak 7 | . 2 . 5 . . . . 1 . 2 . 3 1 . . 2 1 2 . 2 1 3 . . 1 2 . . . 1 3 1 7 3 1 2 Penetration Max 2 | . . . . . . . . . . . . . . . . 1 . . . . . . . . . 1 . . . 1 . . 2 1 . . Secondary Targets 2 | . . . . . . . . . . 2 . . . . . . . . . . . . . . . . . . . . . . . . . . Max Gunslinging Chain 1 | . . . . . . . . . . 1 . . . . . . . . . . . . . . . . . . . . . . . . . . Capacitor 156 | . . . . . . . . . . . . . . . . . . . . . . . . . . . . . . . . . . . . 156 Shots Hit Robots 1060 | 3 34 1 44 . 2 21 54 2 7 35 . 26 14 . . 10 27 24 7 21 15 49 . 6 4 25 16 . 18 14 27 28 285 85 11 145 Core Hits 462 | 3 11 1 23 . 1 2 13 2 2 19 . 38 6 . . 5 9 13 . 1 3 3 . . . 22 5 . 3 3 4 6 185 40 2 37 Critical Kills 81 | . . . 2 . . . . . . . . 1 . . . 1 . . . . . 2 . . . 1 . . . 2 . . 38 6 . 28 Critical Parts Destroyed 66 | . . . 3 . . . . . . . . . . . . 3 . . . . . 2 . . . 6 . . . 2 . . 50 . . . Critical Strikes 184 | 1 3 . 5 . . . 5 . . 1 . 1 . . . 4 1 . . 1 . 6 . . . 10 1 . . 4 . . 106 6 . 29 Burn 4 | 1 3 . . . . . . . . . . . . . . . . . . . . . . . . . . . . . . . . . . . Meltdown 41 | . . . . . . . . . . . . . . . . . . . . . . . . . . . . . . . . . 7 6 . 28 Destroy 120 | . . . 5 . . . . . . . . 1 . . . 4 . . . . . 4 . . . 7 . . . 4 . . 95 . . . Sever 19 | . . . . . . . 5 . . 1 . . . . . . 1 . . 1 . 2 . . . 3 1 . . . . . 4 . . 1 Melee Attacks 776 | . 13 4 44 . 6 53 93 . 10 54 1 26 36 . . 11 14 34 . 26 6 20 1 9 10 21 34 7 47 29 43 38 68 9 5 4 Impact 23 | . . . . . . . . . . . . 23 . . . . . . . . . . . . . . . . . . . . . . . . Slashing 687 | . 13 4 44 . 6 40 83 . 5 41 1 3 27 . . 11 14 34 . 26 6 20 1 9 10 21 34 7 38 24 43 38 66 9 5 4 Piercing 9 | . . . . . . . . . . . . . 9 . . . . . . . . . . . . . . . . . . . . . . . Sneak Attacks 121 | . 3 . 11 . . 1 26 . 4 13 . 1 5 . . . 9 5 . 3 2 . . . . . 4 . 11 2 2 5 12 2 . . Combat Hostiles 6 | . . . . . . 1 1 . . 2 . . . . . . . . . . . . . . . . . . . . 1 1 . . . . Follow-up Attacks 1 | . . . . . . . . . . . . . 1 . . . . . . . . . . . . . . . . . . . . . . . Damage Inflicted 55895 | 36 602 23 1477 . 69 677 2200 531 328 1091 . 1149 702 . . 225 963 1274 . 338 284 210 . 112 . 1451 514 . 726 251 954 1740 21101 7331 738 8798 Guns 9047 | 36 370 . 55 . . . . . . 397 . 556 . . . . 91 . . . . . . . . . . . . . . 19 3862 . . 3661 Cannons 25010 | . . . 208 . . . . . . . . 17 . . . 105 . . . . . 64 . . . 240 . . . 109 . . 12069 6844 738 4616 Explosions 4739 | . . . 177 . . . . 531 . 183 . 450 . . . . . 864 . . 91 . . . . 811 . . . . . . 1264 . . 368 Melee 17077 | . 232 23 1037 . 69 677 2200 . 328 511 . 126 702 . . 120 872 410 . 338 193 146 . 112 . 400 514 . 726 142 954 1721 3884 487 . 153 Ramming 22 | . . . . . . . . . . . . . . . . . . . . . . . . . . . . . . . . . 22 . . . Kinetic 8230 | . 55 . 263 . . . . . . . . 17 . . . 105 . . . . . 64 . . . 240 . . . 109 . . 7008 318 . 51 Thermal 22274 | 24 222 . . . . . . . . 397 . 556 . . . . 91 . . . . . . . . . . . . . . 19 8768 6526 738 4933 Explosive 3107 | . . . 177 . . . . 531 . 183 . 450 . . . . . 864 . . 91 . . . . 811 . . . . . . . . . . Electromagnetic 1263 | 12 93 . . . . . . . . . . . . . . . . . . . . . . . . . . . . . . . 1158 . . . Impact 89 | . . . . . . . . . . . . 89 . . . . . . . . . . . . . . . . . . . . . . . . Slashing 16897 | . 232 23 1037 . 69 677 2200 . 328 511 . 37 611 . . 120 872 410 . 338 193 146 . 112 . 400 514 . 726 142 954 1721 3884 487 . 153 Piercing 91 | . . . . . . . . . . . . . 91 . . . . . . . . . . . . . . . . . . . . . . . Entropic 3922 | . . . . . . . . . . . . . . . . . . . . . . . . . . . . . . . . . 261 . . 3661 Highest Corruption 16 | . . . . . . . 4 4 . . . 2 . 7 7 8 8 . . . . . . . 2 7 . 1 . . 3 4 8 2 1 16 Average Corruption 4 | . . . . . . . 3 3 . . . 2 . 7 7 7 7 . . . . . . . 2 2 . 1 . . 2 2 3 1 1 7 Corruption Purged 75 | . . . . . . . . 4 . . . . . . . . 8 . . . . . . . . . . . . . . 2 39 3 . 19 Corruption Blocked . | . . . . . . . . . . . . . . . . . . . . . . . . . . . . . . . . . . . . . Effects 92 | . . . . . . . 2 . . . . 1 . . 2 4 13 . . . . . . . . 3 . 1 . . 3 11 25 2 3 22 Message Errors 18 | . . . . . . . . . . . . . . . 1 . 2 . . . . . . . . 1 . . . . 1 1 6 . 1 5 Matter Fused 21 | . . . . . . . 2 . . . . . . . . 1 4 . . . . . . . . 1 . . . . 1 1 4 1 . 6 Heat Flow Errors 18 | . . . . . . . . . . . . 1 . . . 1 4 . . . . . . . . . . . . . 1 3 4 . 1 3 Energy Discharges 14 | . . . . . . . . . . . . . . . . . 1 . . . . . . . . . . . . . . 4 3 . . 6 Parts Rejected 4 | . . . . . . . . . . . . . . . . . . . . . . . . . . . . 1 . . . . 3 . . . Data Loss (minor) 10 | . . . . . . . . . . . . . . . 1 . 1 . . . . . . . . 1 . . . . . 1 3 1 . 2 Data Loss (major) 4 | . . . . . . . . . . . . . . . . 2 1 . . . . . . . . . . . . . . . 1 . . . Misfires 1 | . . . . . . . . . . . . . . . . . . . . . . . . . . . . . . . . . . . 1 . Alerts 2 | . . . . . . . . . . . . . . . . . . . . . . . . . . . . . . . . 1 1 . . . Overload Shots . | . . . . . . . . . . . . . . . . . . . . . . . . . . . . . . . . . . . . . Overflow Damage 4409 | . 24 . 94 . . 62 243 21 35 28 . 42 176 . . . 44 108 . 49 33 . . . . . . . 244 . 102 299 2306 420 . 79 Projectiles 1295 | . . . 9 . . . . . . . . . . . . . . . . . . . . . . . . . . . . . 789 418 . 79 Explosions 306 | . . . . . . . . 21 . . . 3 . . . . . 90 . . . . . . . . . . . . . . 192 . . . Melee 2808 | . 24 . 85 . . 62 243 . 35 28 . 39 176 . . . 44 18 . 49 33 . . . . . . . 244 . 102 299 1325 2 . . Knockbacks 35 | . . . 2 . . . . . . . . . . . . 2 . . . . . . . . . . . . . . . . 30 1 . . Impact . | . . . . . . . . . . . . . . . . . . . . . . . . . . . . . . . . . . . . . Kinetic 29 | . . . 2 . . . . . . . . . . . . 2 . . . . . . . . . . . . . . . . 24 1 . . Secondary 6 | . . . . . . . . . . . . . . . . . . . . . . . . . . . . . . . . . 6 . . . Self-Inflicted Damage 106 | . . . . . . . . . . 30 . . . . . . . 35 . . 26 . . . . 5 . . . . . . 10 . . . Shots 4 | . . . . . . . . . . 1 . . . . . . . 1 . . 1 . . . . 1 . . . . . . . . . . Rammed 2 | . . . . . . . . . . . . . . . . . . . . . . . . . . . . . . . . . 2 . . . Targets Rammed 2 | . . . . . . . . . . . . . . . . . . . . . . . . . . . . . . . . . 2 . . . Kicked . | . . . . . . . . . . . . . . . . . . . . . . . . . . . . . . . . . . . . . Crushed . | . . . . . . . . . . . . . . . . . . . . . . . . . . . . . . . . . . . . . Highest Temperature 367 | 30 367 . 52 . . 13 3 . . 363 . 200 . . . 171 236 . . 10 6 76 44 10 21 64 . . 3 166 259 341 259 306 . 184 Average Temperature 58 | 14 176 . 19 . . 6 2 . . 117 . 74 . . . 95 78 . . 1 1 15 13 5 4 29 . . 3 80 126 118 47 157 . 28 Received Heat Transfer 2917 | . 246 18 126 . . 150 87 . . 27 . 105 9 . . 18 68 93 . 54 9 100 . . 36 132 69 12 21 12 27 36 918 180 27 337 Effects 4 | . 3 . . . . . . . . 1 . . . . . . . . . . . . . . . . . . . . . . . . . . Shutdowns 2 | . 1 . . . . . . . . 1 . . . . . . . . . . . . . . . . . . . . . . . . . . Interference 1 | . 1 . . . . . . . . . . . . . . . . . . . . . . . . . . . . . . . . . . . Damage (minor) 1 | . 1 . . . . . . . . . . . . . . . . . . . . . . . . . . . . . . . . . . . Siege Activations 2 | . . . . . . . . . . . . . . . . . . . . . . . . . . . . . . . . . 1 . . 1 Total Turns 57 | . . . . . . . . . . . . . . . . . . . . . . . . . . . . . . . . . 28 . . 29 Longest Duration 29 | . . . . . . . . . . . . . . . . . . . . . . . . . . . . . . . . . 28 . . 29 Martial Activations . | . . . . . . . . . . . . . . . . . . . . . . . . . . . . . . . . . . . . . Shielding Activations . | . . . . . . . . . . . . . . . . . . . . . . . . . . . . . . . . . . . . . Robots Disrupted . | . . . . . . . . . . . . . . . . . . . . . . . . . . . . . . . . . . . . . Combat Hostiles . | . . . . . . . . . . . . . . . . . . . . . . . . . . . . . . . . . . . . . Robots Corrupted 7 | . . . . . . . . . . . . . . . . . . . . . . . . . . . . . . . . . 7 . . . Combat Hostiles 7 | . . . . . . . . . . . . . . . . . . . . . . . . . . . . . . . . . 7 . . . Parts Fried 9 | . . . . . . . . . . . . . . . . . . . . . . . . . . . . . . . . . 8 . . 1 Impact Corruptions 1 | . . . . . . . . . . . . 1 . . . . . . . . . . . . . . . . . . . . . . . . Robots Melted 48 | . 1 . . . . . . . . 1 . 2 . . . . 1 . . . . . . . . . . . . . . . 7 8 . 28 Combat Hostiles 48 | . 1 . . . . . . . . 1 . 2 . . . . 1 . . . . . . . . . . . . . . . 7 8 . 28 Parts Melted 82 | . 5 1 . . . . . . . 3 . 2 . . . . 1 . . . . . . . . . . . . . . . 10 27 1 32 Heat Transferred 15926 | 148 888 . . . . . . . . 768 . 1162 . . . . 200 . . . . . . . . . . . . . . 37 6225 3850 450 2198 Parts Sabotaged . | . . . . . . . . . . . . . . . . . . . . . . . . . . . . . . . . . . . . . Parts Stolen . | . . . . . . . . . . . . . . . . . . . . . . . . . . . . . . . . . . . . . Parts Stripped . | . . . . . . . . . . . . . . . . . . . . . . . . . . . . . . . . . . . . . Power Chain Reactions 1 | . . . . . . . . . . . . . . . . . . . . . . . . . . . . . . . . . 1 . . . Alert | -11 -10 -10 -9 -9 -8 -8 -7 -7 -7 -7 -7 -7 -6 -6 -6 -6 -6 -6 -5 -5 -5 -5 -5 -5 -5 -5 -4 -4 -3 -3 -2 -2 -2 -2 -1 -1 ------- Run | Yrd Mat Min Mat Min Mat Gar Fac Was Fac Gar Fac Gar Fac Was Fac Gar Fac Gar Fac Gar Fac Ext Cet Arc Hub Gar Fac Gar Res Qua Res Tes Frg Gar Acc Com Maximum Alert Level 5 | . . . 1 . . 2 2 1 1 5 3 5 4 1 1 2 1 2 1 2 1 1 . . 1 1 . . . . . 2 5 5 5 3 Low Security (%) 37 | 100 100 100 62 100 100 63 . 79 44 . . . . . . 3 34 6 . . 7 66 100 100 52 26 100 100 100 100 100 68 . . . 73 Level 1 17 | . . . 37 . . 28 70 20 55 5 . . . 100 100 89 65 21 100 22 92 33 . . 47 73 . . . . . 17 12 . . . Level 2 15 | . . . . . . 7 29 . . 9 . . . . . 7 . 71 . 77 . . . . . . . . . . . 13 42 . . . Level 3 9 | . . . . . . . . . . 33 100 20 80 . . . . . . . . . . . . . . . . . . . 12 . . 26 Level 4 7 | . . . . . . . . . . 39 . 31 19 . . . . . . . . . . . . . . . . . . . 17 1 43 . Level 5 13 | . . . . . . . . . . 12 . 47 . . . . . . . . . . . . . . . . . . . . 16 98 56 . High Security . | . . . . . . . . . . . . . . . . . . . . . . . . . . . . . . . . . . . . . Max Security . | . . . . . . . . . . . . . . . . . . . . . . . . . . . . . . . . . . . . . Peak Influence 2901 | 5 88 68 326 114 30 494 640 223 352 1834 990 1835 1127 375 255 409 246 697 374 660 368 343 161 121 266 328 184 134 42 71 52 467 2018 2901 1783 976 Initial 1740 | . . 31 14 114 5 . 259 223 91 232 962 686 957 360 255 165 214 130 365 246 336 91 161 13 24 178 170 56 24 . 6 8 249 1512 1740 976 Average 642 | . 22 39 156 66 11 168 342 177 219 1191 961 1468 1029 366 248 276 207 498 362 520 292 143 97 83 155 225 103 97 6 21 13 183 901 2385 1643 543 Influence Increases 17927 | 10 292 127 645 . 63 584 944 38 311 1862 58 1469 443 15 12 354 163 777 27 654 320 875 272 188 551 266 191 99 228 269 322 837 2834 1519 206 102 Destroy 0b10 Robot/C 6455 | . 100 40 200 . . 80 180 . 100 780 20 560 40 . . 60 80 225 . 180 75 360 120 60 135 90 . 15 . 30 60 465 1680 600 30 90 Destroy 0b10 Robot/NC 364 | 10 20 . 65 . 5 10 70 . . . . 5 20 . . . 15 . . . 4 12 . 4 8 . 20 . 20 4 4 16 44 8 . . Destroy Leader 772 | . 14 10 60 . . 20 42 . 20 40 10 30 24 . . . . 16 . 16 32 36 . . 32 16 2 . 2 . 10 50 226 48 16 . Allied During Kill 2568 | . . 2 . . . 8 11 . 110 671 21 411 . . . 4 9 151 . 154 100 325 120 64 113 2 . 2 . 8 8 151 51 31 41 . Trap Triggered on 0b10 48 | . . . . . . . . . . . . . . . . . . . . . . . . . . . . . . . . . 48 . . . Successful Hack 686 | . 21 . 23 . 12 16 86 . 35 . 6 24 72 . 12 8 10 9 11 6 10 20 . . 5 4 9 22 68 95 28 32 14 8 20 . Select Force Hacks 322 | . 60 . 30 . 30 . 20 . 30 . . . . . . . 30 . . . 23 . . . 76 . . . . . 23 . . . . . Disable Machine 810 | . 15 . 15 . 15 60 75 . . . . 15 15 . . . . 12 . . 36 . . 48 60 . 12 . . 84 . 84 180 36 36 12 Anti-Garrison Action 1459 | . . . . . . 150 . . . 200 . 200 . . . 150 . 266 . 190 . . . . . . . 38 . . . . . 265 . . Destroy Structure 1872 | . 2 . 12 . 1 45 55 38 1 141 1 119 17 . . 27 4 98 4 96 28 26 20 12 62 82 52 22 54 24 81 27 231 427 63 . Partial Spotted 561 | . . 30 60 . . . 165 . 15 15 . 30 15 15 . . . . 12 . 12 84 . . 24 . 12 . 24 12 12 12 12 . . . Lose Combat Pursuer 2010 | . 60 45 180 . . 195 240 . . 15 . 75 240 . . 105 15 . . 12 . 12 12 . 36 72 84 . 60 12 96 . 348 96 . . Influence Decreases 17069 | 10 212 169 388 281 77 90 799 546 110 360 912 624 1238 680 140 182 385 267 372 366 774 772 528 150 367 197 434 135 273 257 319 409 1261 634 1581 770 Entered New Map 7923 | . . 49 24 181 9 . 235 416 40 100 872 294 868 670 110 72 195 57 332 106 304 95 128 20 47 77 154 25 21 . 6 7 194 504 1161 550 Time Decay 5191 | 10 162 100 264 100 30 . 464 90 70 . 40 . 350 10 30 . 180 . 40 . 180 437 160 70 50 . 270 . 208 231 229 319 717 . 230 150 Lost Part 908 | . 50 . 100 . . 30 50 . . 20 . 40 20 . . 40 10 30 . 50 20 . . . . 80 . 70 18 . 10 10 190 30 30 10 Lost Ally 2747 | . . 20 . . 38 60 50 40 . 240 . 290 . . . 70 . 180 . 210 120 90 240 60 270 40 10 40 26 26 74 73 160 100 160 60 Purge Threat 300 | . . . . . . . . . . . . . . . . . . . . . 150 150 . . . . . . . . . . . . . . Squads Dispatched 110 | . 4 . 1 . 3 . 13 . 2 . 2 . 9 . 2 . 5 . 1 . 1 1 . . 6 . 8 . 3 4 8 7 27 . 2 1 Investigation 39 | . 3 . 1 . 3 . 6 . 2 . 2 . 3 . 2 . 4 . 1 . 1 . . . 2 . 6 . 1 . 1 . 1 . . . Extermination 24 | . . . . . . . 4 . . . . . 2 . . . 1 . . . . . . . . . 2 . . 2 3 2 7 . 1 . Reinforcement 22 | . 1 . . . . . 3 . . . . . 1 . . . . . . . . 1 . . 2 . . . 2 . 4 5 3 . . . Assault 19 | . . . . . . . . . . . . . 3 . . . . . . . . . . . 2 . . . . 2 . . 10 . 1 1 Garrison 6 | . . . . . . . . . . . . . . . . . . . . . . . . . . . . . . . . . 6 . . . Intercept . | . . . . . . . . . . . . . . . . . . . . . . . . . . . . . . . . . . . . . Searches Triggered . | . . . . . . . . . . . . . . . . . . . . . . . . . . . . . . . . . . . . . Construction Impeded 3 | . . . . . . . . . . . . . 1 . . . . . . . . 1 . . . . . . . . . . 1 . . . Haulers Reinforced 2 | . . . . . . . 2 . . . . . . . . . . . . . . . . . . . . . . . . . . . . . Active Scanning Responses . | . . . . . . . . . . . . . . . . . . . . . . . . . . . . . . . . . . . . . Cargo Convoy Interrupts . | . . . . . . . . . . . . . . . . . . . . . . . . . . . . . . . . . . . . . Alert ID Control Effect 47 | . . . . . . . . . . . . . . . . 5 5 16 . 9 1 1 . . . . . . . 2 3 1 . 3 1 . Stealth | -11 -10 -10 -9 -9 -8 -8 -7 -7 -7 -7 -7 -7 -6 -6 -6 -6 -6 -6 -5 -5 -5 -5 -5 -5 -5 -5 -4 -4 -3 -3 -2 -2 -2 -2 -1 -1 --------- Run | Yrd Mat Min Mat Min Mat Gar Fac Was Fac Gar Fac Gar Fac Was Fac Gar Fac Gar Fac Gar Fac Ext Cet Arc Hub Gar Fac Gar Res Qua Res Tes Frg Gar Acc Com Distress Signals 31 | . 1 . . . 2 . . . . . . . 1 . . . . . . . . 2 1 . . . . . 5 1 1 . . . . 17 Communications Jammed 158 | . . . . . . . . . . . . . . . . . . . . . . . . . . . . . . . . 2 9 53 70 24 Distress Signals 148 | . . . . . . . . . . . . . . . . . . . . . . . . . . . . . . . . 2 7 53 62 24 Times Spotted 784 | . 19 7 27 . 4 18 30 6 6 37 . 35 22 4 1 21 15 38 . 31 19 31 11 2 24 14 14 10 17 14 31 27 149 51 6 43 Peak Tracking Total 13 | . 5 2 12 . 5 8 7 5 4 5 . 8 7 4 1 12 3 10 . 8 7 8 5 2 13 7 8 11 4 9 8 7 8 6 2 4 Tactical Retreats 75 | . 3 2 7 . . 5 6 . . 1 . 3 5 . . 2 1 . . 1 . 1 1 . 1 2 2 . 3 1 4 . 17 7 . . Traps | -11 -10 -10 -9 -9 -8 -8 -7 -7 -7 -7 -7 -7 -6 -6 -6 -6 -6 -6 -5 -5 -5 -5 -5 -5 -5 -5 -4 -4 -3 -3 -2 -2 -2 -2 -1 -1 ------- Run | Yrd Mat Min Mat Min Mat Gar Fac Was Fac Gar Fac Gar Fac Was Fac Gar Fac Gar Fac Gar Fac Ext Cet Arc Hub Gar Fac Gar Res Qua Res Tes Frg Gar Acc Com Traps Triggered 50 | . . . . . . 3 5 . . 4 1 . 1 . . . 1 8 . 2 3 1 . . 1 3 . . 1 . 5 1 7 1 2 . Indirectly . | . . . . . . . . . . . . . . . . . . . . . . . . . . . . . . . . . . . . . Trap Hack Attempts 2 | . . . . . . . 2 . . . . . . . . . . . . . . . . . . . . . . . . . . . . . Triggered . | . . . . . . . . . . . . . . . . . . . . . . . . . . . . . . . . . . . . . Disarmed . | . . . . . . . . . . . . . . . . . . . . . . . . . . . . . . . . . . . . . Reprogrammed 7 | . . . . . . . 1 . . . . . . . . . . . . . . 6 . . . . . . . . . . . . . . Reused 6 | . . . . . . . . . . . . . . . . . . . . . . . . . . . . . . . . . 6 . . . Traps Extracted 6 | . . . . . . . . . . . . . . . . . . . . . . 6 . . . . . . . . . . . . . . Installed 6 | . . . . . . . . . . . . . . . . . . . . . . . . . . . . . . . . . 6 . . . Triggered 6 | . . . . . . . . . . . . . . . . . . . . . . . . . . . . . . . . . 6 . . . Most Traps Carried 6 | . . . . . . . . . . . . . . . . . . . . . . 6 6 6 6 6 6 6 6 6 6 6 6 . . . Machines | -11 -10 -10 -9 -9 -8 -8 -7 -7 -7 -7 -7 -7 -6 -6 -6 -6 -6 -6 -5 -5 -5 -5 -5 -5 -5 -5 -4 -4 -3 -3 -2 -2 -2 -2 -1 -1 ---------- Run | Yrd Mat Min Mat Min Mat Gar Fac Was Fac Gar Fac Gar Fac Was Fac Gar Fac Gar Fac Gar Fac Ext Cet Arc Hub Gar Fac Gar Res Qua Res Tes Frg Gar Acc Com Machines Disabled 105 | . 1 . 1 . 1 7 5 . . 3 . 3 1 . . 2 . 7 . 5 3 4 . 4 5 1 1 1 . 7 . 7 23 9 3 1 Max in Single Turn 2 | . 1 . 1 . 1 1 . . . 1 . 1 1 . . 1 . 1 . 1 . 1 . 1 . 1 1 1 . 1 . 1 2 2 1 1 Garrison Access 10 | . . . . . . . 3 . . . . . 1 . . . . . . . 1 . . . 1 . . . 1 1 1 1 . . . . Garrison Relay 27 | . . . . . . 3 . . . 3 . 2 . . . 2 . 6 . 5 . . . . . 1 . 1 . . . . . 4 . . Phase Generator 1 | . . . . . . . . . . . . . . . . . . . . . . . . . . . . . . . . . . 1 . . Network Hub 2 | . . . . . . . . . . . . . . . . . . . . . . . . . 2 . . . . . . . . . . . Machines Repaired . | . . . . . . . . . . . . . . . . . . . . . . . . . . . . . . . . . . . . . Machines Dismantled . | . . . . . . . . . . . . . . . . . . . . . . . . . . . . . . . . . . . . . Machines Sabotaged 2 | . . . . . . . . . . . . . . . . . . . . . . . . . 2 . . . . . . . . . . . Overloaded Fab Kills . | . . . . . . . . . . . . . . . . . . . . . . . . . . . . . . . . . . . . . Hacking | -11 -10 -10 -9 -9 -8 -8 -7 -7 -7 -7 -7 -7 -6 -6 -6 -6 -6 -6 -5 -5 -5 -5 -5 -5 -5 -5 -4 -4 -3 -3 -2 -2 -2 -2 -1 -1 --------- Run | Yrd Mat Min Mat Min Mat Gar Fac Was Fac Gar Fac Gar Fac Was Fac Gar Fac Gar Fac Gar Fac Ext Cet Arc Hub Gar Fac Gar Res Qua Res Tes Frg Gar Acc Com Machines Accessed 181 | . 9 . 14 . 3 1 25 . 5 1 2 4 14 . 4 2 8 3 2 3 5 10 1 . 6 3 11 2 10 8 9 7 3 1 4 1 Terminals 121 | . 7 . 11 . 1 1 11 . 3 1 1 4 10 . 1 2 3 3 . 3 2 10 1 . 5 3 5 2 5 6 6 6 2 1 4 1 Fabricators 10 | . . . . . . . 4 . . . . . . . . . 3 . . . . . . . . . 2 . 1 . . . . . . . Repair Stations 8 | . . . . . . . 2 . . . . . 1 . 1 . . . 1 . 1 . . . . . 1 . 1 . . . . . . . Recycling Units 8 | . 2 . 1 . 1 . 2 . . . . . 1 . . . . . . . . . . . . . 1 . . . . . . . . . Scanalyzers 15 | . . . 2 . . . 3 . 1 . . . 1 . 1 . 1 . . . 1 . . . . . 1 . 2 1 1 . . . . . Garrison Access 19 | . . . . . 1 . 3 . 1 . 1 . 1 . 1 . 1 . 1 . 1 . . . 1 . 1 . 1 1 2 1 1 . . . Total Hacks 511 | . 32 . 33 . 5 1 75 . 24 2 8 8 41 . 6 4 20 7 8 6 18 30 1 . 16 8 31 9 31 28 22 24 6 2 4 1 Successful 306 | . 21 . 15 . 4 1 46 . 18 . 6 4 32 . 4 1 10 2 4 2 7 18 1 . 9 4 22 4 19 18 14 9 4 2 4 1 Failed 204 | . 11 . 17 . 1 . 29 . 6 2 2 4 9 . 2 3 10 5 4 4 11 12 . . 7 4 9 5 12 10 8 15 2 . . . Catastrophic 36 | . 1 . 2 . . . 5 . 1 1 1 2 2 . . 1 5 1 1 . 1 . . . . 1 1 2 1 2 1 3 1 . . . Database Lockouts 1 | . . . 1 . . . . . . . . . . . . . . . . . . . . . . . . . . . . . . . . . Manual 324 | . 27 . 25 . 4 1 40 . 14 2 6 2 25 . 3 3 9 2 7 . 12 19 1 . 15 4 18 7 17 19 15 20 4 2 1 . Terminals 355 | . 22 . 26 . 1 1 40 . 12 2 6 8 28 . 1 4 6 7 . 6 14 30 1 . 15 8 15 9 18 25 16 23 4 2 4 1 Fabricators 29 | . . . . . . . 8 . . . . . . . . . 10 . . . . . . . . . 9 . 2 . . . . . . . Repair Stations 13 | . . . . . . . 3 . . . . . 3 . 1 . . . 2 . 2 . . . . . 1 . 1 . . . . . . . Recycling Units 27 | . 10 . 1 . 1 . 9 . . . . . 2 . . . . . . . . . . . . . 4 . . . . . . . . . Scanalyzers 51 | . . . 6 . . . 11 . 9 . . . 6 . 2 . 1 . . . 1 . . . . . 1 . 9 2 3 . . . . . Garrison Access 36 | . . . . . 3 . 4 . 3 . 2 . 2 . 2 . 3 . 6 . 1 . . . 1 . 1 . 1 1 3 1 2 . . . Terminal Hacks 88 | . 3 . 2 . 1 1 11 . 3 . 2 4 9 . . 1 . 2 . 2 3 8 1 . 3 4 4 4 2 6 3 1 1 2 4 1 Record 1 | . 1 . . . . . . . . . . . . . . . . . . . . . . . . . . . . . . . . . . . Part Schematic 6 | . . . . . . . 3 . 1 . . . . . . . . . . . 1 1 . . . . . . . . . . . . . . Robot Schematic 2 | . . . . . . . . . . . . . 1 . . . . . . . . 1 . . . . . . . . . . . . . . Robot Analysis 4 | . . . . . . . . . . . . . 3 . . . . . . . . . . . . . . . . 1 . . . . . . Prototype ID Bank 3 | . . . 1 . . . 1 . . . . . . . . . . . . . . . . . . . . . . . 1 . . . . . Open Door 13 | . . . . . . . . . . . . 1 . . . . . 1 . 1 . 3 1 . . 1 . . 1 . . . . . 3 1 Level Access Points 2 | . . . . . . . 1 . . . . . . . . . . . . . . . . . . . . . . 1 . . . . . . Branch Access Points 4 | . . . . . 1 . . . . . . . . . . . . . . . . . . . . . 1 . . . 1 . . . 1 . Emergency Access Points 4 | . . . . . . . . . . . . 1 . . . . . 1 . . . . . . . 1 . 1 . . . . . . . . Terminal Index 12 | . 1 . . . . . 1 . 1 . 1 . 1 . . . . . . . 1 1 . . . . 1 . 1 1 1 1 . . . . Fabricator Index 1 | . . . . . . . 1 . . . . . . . . . . . . . . . . . . . . . . . . . . . . . Scanalyzer Index 1 | . . . . . . . . . 1 . . . . . . . . . . . . . . . . . . . . . . . . . . . Garrison Index 3 | . . . . . . . 1 . . . . . . . . . . . . . . . . . 1 . 1 . . . . . . . . . Unreport Threat 2 | . . . . . . . . . . . . . . . . . . . . . 1 1 . . . . . . . . . . . . . . Locate Traps 3 | . . . 1 . . . 1 . . . . . 1 . . . . . . . . . . . . . . . . . . . . . . . Reprogram Traps 1 | . . . . . . . . . . . . . . . . . . . . . . 1 . . . . . . . . . . . . . . Extermination Status 1 | . . . . . . . . . . . . . . . . . . . . . . . . . . . . . . 1 . . . . . . Recall Extermination 3 | . . . . . . . . . . . . . 1 . . . . . . . . . . . . . . . . 2 . . . . . . Registered Components 2 | . . . . . . . 1 . . . . . 1 . . . . . . . . . . . . . . . . . . . . . . . Zone Layout 7 | . 1 . . . . . 1 . . . 1 . 1 . . . . . . . . . . . 2 . 1 . . . . . . . . . Garrison Registry 7 | . . . . . . 1 . . . . . 1 . . . 1 . . . 1 . . . . . 1 . 1 . . . . . 1 . . Patrol Navigation 2 | . . . . . . . . . . . . . . . . . . . . . . . . . . . . 1 . . . . . 1 . . Security Stations 3 | . . . . . . . . . . . . 1 . . . . . . . . . . . . . 1 . 1 . . . . . . . . Proto ID Catalog 1 | . . . . . . . . . . . . . . . . . . . . . . . . . . . . . . . . . 1 . . . Fabricator Hacks 10 | . . . . . . . 2 . . . . . . . . . 3 . . . . . . . . . 3 . 2 . . . . . . . Network Status 2 | . . . . . . . 1 . . . . . . . . . . . . . . . . . . . 1 . . . . . . . . . Load Schematic 4 | . . . . . . . . . . . . . . . . . 2 . . . . . . . . . 1 . 1 . . . . . . . Build 4 | . . . . . . . 1 . . . . . . . . . 1 . . . . . . . . . 1 . 1 . . . . . . . Repair Station Hacks 5 | . . . . . . . 2 . . . . . 2 . . . . . . . . . . . . . . . 1 . . . . . . . Scan Component 2 | . . . . . . . 1 . . . . . 1 . . . . . . . . . . . . . . . . . . . . . . . Repair 2 | . . . . . . . 1 . . . . . 1 . . . . . . . . . . . . . . . . . . . . . . . Refit 1 | . . . . . . . . . . . . . . . . . . . . . . . . . . . . . 1 . . . . . . . Recycling Unit Hacks 4 | . 2 . . . . . 2 . . . . . . . . . . . . . . . . . . . . . . . . . . . . . Retrieve Components 4 | . 2 . . . . . 2 . . . . . . . . . . . . . . . . . . . . . . . . . . . . . Scanalyzer 30 | . . . 3 . . . 3 . 8 . . . 6 . . . . . . . . . . . . . 1 . 7 2 . . . . . . Insert Component 5 | . . . 1 . . . . . 1 . . . 1 . . . . . . . . . . . . . . . . 2 . . . . . . Analyze 6 | . . . 1 . . . . . 2 . . . 3 . . . . . . . . . . . . . . . . . . . . . . . Retrieve Study 19 | . . . 1 . . . 3 . 5 . . . 2 . . . . . . . . . . . . . 1 . 7 . . . . . . . Garrison Access Hacks 21 | . . . . . 1 . 4 . 1 . 1 . 2 . 1 . 1 . 1 . 1 . . . 1 . 1 . 1 1 2 1 1 . . . Unlock Access 10 | . . . . . 1 . . . 1 . 1 . . . 1 . 1 . 1 . . . . . 1 . 1 . . 1 . . 1 . . . Seal Access 8 | . . . . . . . 3 . . . . . 1 . . . . . . . 1 . . . . . . . 1 . 1 1 . . . . Coupler Status 3 | . . . . . . . 1 . . . . . 1 . . . . . . . . . . . . . . . . . 1 . . . . . Unauthorized Hacks 148 | . 16 . 10 . 2 . 22 . 6 . 3 . 13 . 3 . 6 . 3 . 3 10 . . 5 . 13 . 6 9 9 7 2 . . . Terminals 101 | . 9 . 9 . . . 12 . 4 . 2 . 10 . 1 . 1 . . . 1 10 . . 5 . 6 . 6 9 8 7 1 . . . Track 5 | . . . 1 . . . 1 . . . . . 1 . . . . . . . . . . . 1 . . . . 1 . . . . . . Assimilate 9 | . 1 . . . . . 1 . 1 . . . 1 . 1 . . . . . . . . . . . . . 1 1 1 1 . . . . Botnet 27 | . 2 . 1 . . . 2 . 2 . 1 . 2 . . . . . . . 1 3 . . 2 . 3 . 1 2 2 2 1 . . . Disrupt 2 | . . . 1 . . . . . . . . . . . . . . . . . . 1 . . . . . . . . . . . . . . Operators 4 | . 1 . . . . . . . . . 1 . 1 . . . . . . . . 1 . . . . . . . . . . . . . . Skim 52 | . 5 . 6 . . . 8 . 1 . . . 5 . . . 1 . . . . 5 . . . . 3 . 4 5 5 4 . . . . Sabotage 2 | . . . . . . . . . . . . . . . . . . . . . . . . . 2 . . . . . . . . . . . Fabricators 8 | . . . . . . . 3 . . . . . . . . . 3 . . . . . . . . . 2 . . . . . . . . . Prioritize 3 | . . . . . . . 1 . . . . . . . . . 1 . . . . . . . . . 1 . . . . . . . . . Liberate 1 | . . . . . . . . . . . . . . . . . 1 . . . . . . . . . . . . . . . . . . . Haulers 1 | . . . . . . . 1 . . . . . . . . . . . . . . . . . . . . . . . . . . . . . Download 1 | . . . . . . . 1 . . . . . . . . . . . . . . . . . . . . . . . . . . . . . Recompile 2 | . . . . . . . . . . . . . . . . . 1 . . . . . . . . . 1 . . . . . . . . . Repair Stations 6 | . . . . . . . 1 . . . . . 1 . 1 . . . 1 . 1 . . . . . 1 . . . . . . . . . Mechanics 3 | . . . . . . . . . . . . . . . . . . . 1 . 1 . . . . . 1 . . . . . . . . . Patch 3 | . . . . . . . 1 . . . . . 1 . 1 . . . . . . . . . . . . . . . . . . . . . Recycling Units 21 | . 7 . 1 . 1 . 6 . . . . . 2 . . . . . . . . . . . . . 4 . . . . . . . . . Monitor 3 | . 1 . . . . . 1 . . . . . . . . . . . . . . . . . . . 1 . . . . . . . . . Reject 6 | . 2 . . . . . 2 . . . . . 1 . . . . . . . . . . . . . 1 . . . . . . . . . Recyclers 4 | . 1 . . . . . 1 . . . . . 1 . . . . . . . . . . . . . 1 . . . . . . . . . Mask 4 | . 1 . . . . . 2 . . . . . . . . . . . . . . . . . . . 1 . . . . . . . . . Tunnel 4 | . 2 . 1 . 1 . . . . . . . . . . . . . . . . . . . . . . . . . . . . . . . Scanalyzers 3 | . . . . . . . . . 1 . . . . . . . 1 . . . 1 . . . . . . . . . . . . . . . Extract 3 | . . . . . . . . . 1 . . . . . . . 1 . . . 1 . . . . . . . . . . . . . . . Garrison Access 9 | . . . . . 1 . . . 1 . 1 . . . 1 . 1 . 2 . . . . . . . . . . . 1 . 1 . . . Broadcast 2 | . . . . . . . . . . . . . . . . . . . 1 . . . . . . . . . . . . . 1 . . . Reprogram 5 | . . . . . 1 . . . 1 . 1 . . . 1 . 1 . . . . . . . . . . . . . . . . . . . Watchers 1 | . . . . . . . . . . . . . . . . . . . 1 . . . . . . . . . . . . . . . . . Eject 1 | . . . . . . . . . . . . . . . . . . . . . . . . . . . . . . . 1 . . . . . Data Cores Recovered 7 | . . . 2 . . . 1 . . . . . 1 . . . 1 . . . . . . . 1 . . . . . . 1 . . . . Used 2 | . . . 1 . . . . . . . . . 1 . . . . . . . . . . . . . . . . . . . . . . . Hacking Detections 114 | . 7 . 13 . 1 1 19 . 5 1 2 3 12 . 3 2 4 2 2 2 3 7 . . . . 4 1 5 6 3 5 . . 1 . Full Trace Events 16 | . 2 . . . 1 . 3 . . 1 . 2 2 . . 1 1 1 1 . . . . . . . 1 . . . . . . . . . Feedback Events 2 | . . . . . . . . . . . . . . . . 2 . . . . . . . . . . . . . . . . . . . . Corruption 1 | . . . . . . . . . . . . . . . . 1 . . . . . . . . . . . . . . . . . . . . Hackware Fried 1 | . . . . . . . . . . . . . . . . 1 . . . . . . . . . . . . . . . . . . . . Feedback Blocked . | . . . . . . . . . . . . . . . . . . . . . . . . . . . . . . . . . . . . . Robot Schematics Acquired 9 | . . . . . . . . . . . . . 1 . . . . . . . . 1 . . . . . . . 2 . 2 3 . . . Robots Built . | . . . . . . . . . . . . . . . . . . . . . . . . . . . . . . . . . . . . . Authchips . | . . . . . . . . . . . . . . . . . . . . . . . . . . . . . . . . . . . . . Time . | . . . . . . . . . . . . . . . . . . . . . . . . . . . . . . . . . . . . . Total Robot Build Rating . | . . . . . . . . . . . . . . . . . . . . . . . . . . . . . . . . . . . . . Part Schematics Acquired 38 | . . . 1 . . . 4 . 4 . . . 1 . . . 3 . . . 2 1 . . . . . . . . . 9 13 . . . Parts Built 7 | . . . . . . . 2 . . . . . . . . . 2 . . . . . . . . . 1 . 2 . . . . . . . Authchips 2 | . . . . . . . . . . . . . . . . . 1 . . . . . . . . . . . 1 . . . . . . . Time 227 | . . . . . . . 42 . . . . . . . . . 53 . . . . . . . . . 26 . 106 . . . . . . . Total Part Build Rating 38 | . . . . . . . 8 . . . . . . . . . 12 . . . . . . . . . 6 . 12 . . . . . . . Part Studies Acquired 19 | . . . 1 . . . 3 . 5 . . . 2 . . . . . . . . . . . . . 1 . 7 . . . . . . . Parts Repaired 2 | . . . . . . . 1 . . . . . 1 . . . . . . . . . . . . . . . . . . . . . . . Time 102 | . . . . . . . 22 . . . . . 80 . . . . . . . . . . . . . . . . . . . . . . . Parts Recycled . | . . . . . . . . . . . . . . . . . . . . . . . . . . . . . . . . . . . . . Recycled Matter . | . . . . . . . . . . . . . . . . . . . . . . . . . . . . . . . . . . . . . Retrieved Matter . | . . . . . . . . . . . . . . . . . . . . . . . . . . . . . . . . . . . . . Retrieved Components 10 | . 5 . . . . . 5 . . . . . . . . . . . . . . . . . . . . . . . . . . . . . Parts Scanalyzed 3 | . . . 1 . . . . . 1 . . . 1 . . . . . . . . . . . . . . . . . . . . . . . Part Schematics Acquired 3 | . . . 1 . . . . . 1 . . . 1 . . . . . . . . . . . . . . . . . . . . . . . Parts Damaged . | . . . . . . . . . . . . . . . . . . . . . . . . . . . . . . . . . . . . . Bothacking | -11 -10 -10 -9 -9 -8 -8 -7 -7 -7 -7 -7 -7 -6 -6 -6 -6 -6 -6 -5 -5 -5 -5 -5 -5 -5 -5 -4 -4 -3 -3 -2 -2 -2 -2 -1 -1 ------------ Run | Yrd Mat Min Mat Min Mat Gar Fac Was Fac Gar Fac Gar Fac Was Fac Gar Fac Gar Fac Gar Fac Ext Cet Arc Hub Gar Fac Gar Res Qua Res Tes Frg Gar Acc Com Used RIF Installer 11 | . . . . . . 2 . . . 2 . 1 . . . 1 . 1 . 1 . . . . . 1 . 1 . . . . . 1 . . Hotswap 1 | . . . . . . 1 . . . . . . . . . . . . . . . . . . . . . . . . . . . . . . Code Merge 2 | . . . . . . . . . . 1 . 1 . . . . . . . . . . . . . . . . . . . . . . . . Command Fork 1 | . . . . . . . . . . . . . . . . . . . . . . . . . . . . 1 . . . . . . . . Threat Obfuscator 1 | . . . . . . . . . . . . . . . . . . 1 . . . . . . . . . . . . . . . . . . Watcher Feeds 1 | . . . . . . . . . . 1 . . . . . . . . . . . . . . . . . . . . . . . . . . Alert ID Control 1 | . . . . . . . . . . . . . . . . 1 . . . . . . . . . . . . . . . . . . . . Program Shield 1 | . . . . . . . . . . . . . . . . . . . . . . . . . . . . . . . . . . 1 . . Autooverride 2 | . . . . . . . . . . . . . . . . . . . . 1 . . . . . 1 . . . . . . . . . . Robots Hacked 162 | . . . . . . 5 9 . 3 4 . . 2 . . 2 12 11 2 21 10 6 . 3 4 . 7 . 8 6 16 8 7 7 3 6 Non-combat 47 | . . . . . . . 2 . . . . . 1 . . . 3 . 1 1 3 4 . 3 4 . 7 . 6 3 4 3 1 . 1 . Combat 114 | . . . . . . 5 7 . 3 4 . . 1 . . 2 9 11 1 20 7 2 . . . . . . 2 3 12 5 6 7 2 5 Autooverrided 30 | . . . . . . . . . . . . . . . . . . . . 4 1 . . . . . . . 1 1 6 4 3 7 . 3 Robot Hacks Applied 141 | . . . . . . 6 9 . 3 4 . . 2 . . 2 13 11 2 17 11 7 . 3 4 . 8 . 8 5 10 5 4 1 3 3 parse_system 1 | . . . . . . . . . . . . . . . . . . . . . . . . . . . . . . . . . . . . 1 no_distress 2 | . . . . . . . . . . . . . . . . . . . . . . . . . . . . . 2 . . . . . . . find_chute 3 | . . . . . . . 1 . . . . . 1 . . . . . . . . . . . . . 1 . . . . . . . . . ignore_repairs 1 | . . . . . . . . . . . . . . . . . . . . . . 1 . . . . . . . . . . . . . . drop_inventory 25 | . . . . . . . . . . . . . . . . . 3 . . . 2 2 . . 2 . 5 . 4 1 3 2 . . 1 . reprogram_traps 1 | . . . . . . . . . . . . . . . . . . . . . . . . . . . . . . . . 1 . . . . block_reporting 10 | . . . . . . . . . . . . . . . . . . . . . 1 1 . . 2 . 1 . 1 2 1 1 . . . . map_route 1 | . . . . . . . 1 . . . . . . . . . . . . . . . . . . . . . . . . . . . . . disable_scanner 2 | . . . . . . . . . . . . . . . . . . . . . . . . . . . . . . . . . 2 . . . scatter_targeting 1 | . . . . . . . 1 . . . . . . . . . . . . . . . . . . . . . . . . . . . . . spike_heat 4 | . . . . . . 3 . . . . . . . . . . 1 . . . . . . . . . . . . . . . . . . . overload_power 1 | . . . . . . . . . . . . . . . . . 1 . . . . . . . . . . . . . . . . . . . amplify_resonance 10 | . . . . . . . . . . . . . . . . . 1 2 . 3 2 1 . . . . . . . . 1 . . . . . wipe_record 1 | . . . . . . . . . . . . . . . . . . . . . . . . . . . . . . . 1 . . . . . reboot_system 11 | . . . . . . . 4 . . 1 . . . . . . 1 2 . 1 1 . . . . . . . . . . . 1 . . . overwrite_iff 15 | . . . . . . 1 1 . 3 . . . . . . 2 3 . . 2 1 1 . . . . . . 1 . . . . . . . formatsys_low 9 | . . . . . . . . . . . . . . . . . . . 1 1 1 1 . 3 . . 1 . . . . . 1 . . . formatsys_high 43 | . . . . . . 2 1 . . 3 . . 1 . . . 3 7 1 10 3 . . . . . . . . 2 4 1 . 1 2 2 Manual 1 | . . . . . . . . . . . . . . . . . . . . . . . . . . . . . . . . . . . . 1 Relay Couplers Released 127 | . . . . . . 14 2 . . 11 . 7 6 . . 6 . 21 . 21 . . . . 3 4 . 3 2 3 8 . . 16 . . Ejected 4 | . . . . . . . . . . . . . . . . . . . . . . . . . . . . . . . 4 . . . . . Machine Destruction 115 | . . . . . . 14 2 . . 11 . 7 2 . . 6 . 21 . 21 . . . . 3 4 . 3 2 3 . . . 16 . . Programmers 8 | . . . . . . . . . . . . . 4 . . . . . . . . . . . . . . . . . 4 . . . . . Attached 44 | . . . . . . 3 3 . 1 3 . 2 2 . . 1 . 7 . 6 1 . . . . 3 1 2 2 . 2 . . 5 . . Merged Code Value 663 | . . . . . . . . . . 11 . 45 41 . . 41 . 151 . 174 . . . . . 15 . 13 . . 52 . . 120 . . Fabnet Peak Effective % . | . . . . . . . . . . . . . . . . . . . . . . . . . . . . . . . . . . . . . Robots Rewired 40 | . . . . . . . 1 . . 6 . . . . . . . 4 2 3 . 16 . . . . . . . . . 2 . 6 . . Allies Hacked 9 | . . . . . . . . . . . . . . . . . . . . 3 . . . . . 1 . . 1 . 2 . 1 . 1 . Hacks Repelled . | . . . . . . . . . . . . . . . . . . . . . . . . . . . . . . . . . . . . . Allies | -11 -10 -10 -9 -9 -8 -8 -7 -7 -7 -7 -7 -7 -6 -6 -6 -6 -6 -6 -5 -5 -5 -5 -5 -5 -5 -5 -4 -4 -3 -3 -2 -2 -2 -2 -1 -1 -------- Run | Yrd Mat Min Mat Min Mat Gar Fac Was Fac Gar Fac Gar Fac Was Fac Gar Fac Gar Fac Gar Fac Ext Cet Arc Hub Gar Fac Gar Res Qua Res Tes Frg Gar Acc Com Total Allies 208 | . . 1 . 3 3 3 4 19 6 9 3 2 1 . 3 2 12 13 4 20 6 22 5 3 . 2 1 2 4 6 13 8 5 15 3 5 Largest Group 29 | . . 1 . 3 4 2 3 19 15 20 13 15 1 1 3 3 9 11 14 20 24 29 29 21 19 2 1 2 2 6 4 5 4 6 9 3 Highest-Rated Group 1151 | . . 31 . 40 64 32 90 465 355 429 253 331 41 41 108 108 264 554 687 776 900 1119 1151 1141 920 67 10 190 94 259 222 354 222 332 498 174 Highest-Rated Ally 159 | . . 31 . 16 16 16 90 35 31 31 31 39 41 41 41 41 32 148 148 148 142 159 159 159 142 38 10 95 47 47 64 90 90 80 80 58 Total Orders 35 | . . . . . . . . . . . . . 2 . . 2 . . 1 5 4 8 5 5 . . . . . . . . 3 . . . STAY 10 | . . . . . . . . . . . . . 1 . . 1 . . . 3 1 4 . . . . . . . . . . . . . . ROAM 2 | . . . . . . . . . . . . . . . . . . . . . . . 1 1 . . . . . . . . . . . . FOLLOW 15 | . . . . . . . . . . . . . 1 . . 1 . . . . 2 3 4 4 . . . . . . . . . . . . AID 6 | . . . . . . . . . . . . . . . . . . . 1 2 1 1 . . . . . . . . . . 1 . . . RETURN 2 | . . . . . . . . . . . . . . . . . . . . . . . . . . . . . . . . . 2 . . . Ally Attacks 1677 | . . 9 . . 20 21 27 104 15 243 5 147 . . . 25 28 131 . 98 40 128 98 47 72 . . 2 1 12 29 209 97 32 33 4 Total Damage 41997 | . . 128 . . 172 244 870 3231 174 3614 49 2042 . . . 756 491 2418 . 2427 951 3912 2328 1171 2413 . . 85 44 536 834 8639 2448 1078 766 176 Kills 232 | . . 1 . . . 4 7 12 2 26 1 17 . . . 6 5 19 . 19 5 28 9 6 11 . . 1 . 3 3 31 10 3 3 . Allies Corrupted 19 | . . . . . . . . . . 1 . . . . . . . 1 . 2 1 . . . 2 2 . 1 . . 2 . 1 3 3 . Allies Melted 7 | . . . . . . . 1 . . . . . . . . . . . . 1 . . . . . . . . . . . 1 . . . 4 Intel | -11 -10 -10 -9 -9 -8 -8 -7 -7 -7 -7 -7 -7 -6 -6 -6 -6 -6 -6 -5 -5 -5 -5 -5 -5 -5 -5 -4 -4 -3 -3 -2 -2 -2 -2 -1 -1 ------- Run | Yrd Mat Min Mat Min Mat Gar Fac Was Fac Gar Fac Gar Fac Was Fac Gar Fac Gar Fac Gar Fac Ext Cet Arc Hub Gar Fac Gar Res Qua Res Tes Frg Gar Acc Com Active Infowar (turns) 10020 | 10 238 205 588 206 64 152 53 187 59 . . . . . . . . . 88 158 . . . . . . 561 108 666 581 775 761 2577 1372 495 116 Optics 4149 | . 141 205 588 206 64 152 . . . . . . . . . . . . . . . . . . . . . . 2 . . 544 2247 . . . Sensors 3655 | . . . . . . . . . . . . . . . . . . . . . . . . . . . 561 108 . 345 775 761 732 . 258 115 Terrain 107 | 10 97 . . . . . . . . . . . . . . . . . . . . . . . . . . . . . . . . . . . Structural 4105 | . 44 205 398 . . . . . . . . . . . . . . . . . . . . . . . 121 30 666 566 775 761 539 . . . Seismic 214 | . . . . . . . . . . . . . . . . . . . . . . . . . . . . . . 214 . . . . . . T.N.C. 340 | . . . 88 . . . 6 187 59 . . . . . . . . . . . . . . . . . . . . . . . . . . . Machine Analysis 47 | . . . . . . . 47 . . . . . . . . . . . . . . . . . . . . . . . . . . . . . Cloaking 470 | . . . . . . . . . . . . . . . . . . . . . . . . . . . . . . . 15 2 453 . . . Spoofing 1 | . . . . . . . . . . . . . . . . . . . . 1 . . . . . . . . . . . . . . . . Jamming 2752 | . . . . . . . . . . . . . . . . . . . 88 158 . . . . . . . . . . . 143 380 1372 495 116 ECM 2 | . . . . . . . . . . . . . . . . . . . . . . . . . . . . . . . . 2 . . . . Robot Analysis Total 4 | . . . . . . . . . . . . . 3 . . . . . . . . . . . . . . . . 1 . . . . . . Derelict Logs Recovered 3 | . . 2 . 1 . . . . . . . . . . . . . . . . . . . . . . . . . . . . . . . . Drone Launches 7 | . . . . . . . . . . . . . . . . . . . . . . . . . . . . . . . . . 7 . . . Drone Recoveries 3 | . . . . . . . . . . . . . . . . . . . . . . . . . . . . . . . . . 3 . . . Exploration | -11 -10 -10 -9 -9 -8 -8 -7 -7 -7 -7 -7 -7 -6 -6 -6 -6 -6 -6 -5 -5 -5 -5 -5 -5 -5 -5 -4 -4 -3 -3 -2 -2 -2 -2 -1 -1 ------------- Run | Yrd Mat Min Mat Min Mat Gar Fac Was Fac Gar Fac Gar Fac Was Fac Gar Fac Gar Fac Gar Fac Ext Cet Arc Hub Gar Fac Gar Res Qua Res Tes Frg Gar Acc Com Turns Passed 20260 | 77 403 205 588 206 64 288 1169 187 157 872 82 534 792 20 60 146 379 774 91 688 366 1106 337 146 107 215 585 108 904 581 775 761 3322 1517 495 1153 Spaces Moved 26982 | 42 505 391 832 539 144 346 2721 271 299 994 110 879 1259 75 180 284 506 1051 154 841 597 1252 334 92 269 226 991 210 2090 1135 1468 1257 3275 574 261 528 Core 8 | 7 . . . . . . . . . . . . . . . . . . . . . . . . . . . . . . . . 1 . . . Treads 1502 | 35 36 . . . . . . . . . . . . . . . . . . . . . . . . . . . . . . . 68 574 261 528 Legs . | . . . . . . . . . . . . . . . . . . . . . . . . . . . . . . . . . . . . . Wheels 42 | . 42 . . . . . . . . . . . . . . . . . . . . . . . . . . . . . . . . . . . Hover 1502 | . . . . . . . . . . . . . . . . . . . . . . . . . . . . . . . . . 1502 . . . Flight 23928 | . 427 391 832 539 144 346 2721 271 299 994 110 879 1259 75 180 284 506 1051 154 841 597 1252 334 92 269 226 991 210 2090 1135 1468 1257 1704 . . . Fastest Speed 23 | 50 37 37 30 32 28 28 26 26 27 27 27 27 26 27 27 27 27 26 27 24 24 24 24 24 24 24 29 39 28 29 29 34 23 160 160 151 Average Speed 38 | 142 51 37 35 32 28 28 27 27 27 27 27 29 27 27 27 27 37 26 27 24 24 24 24 24 24 27 34 39 30 30 33 34 41 160 161 154 Slowest Speed 950 | 160 160 37 120 32 28 28 29 97 27 100 27 100 28 27 27 97 92 27 27 27 27 92 24 24 24 97 100 45 45 32 114 114 950 160 240 160 Overloaded Moves . | . . . . . . . . . . . . . . . . . . . . . . . . . . . . . . . . . . . . . Propulsion Burnouts . | . . . . . . . . . . . . . . . . . . . . . . . . . . . . . . . . . . . . . Robots Hopped 135 | . 3 4 16 . . 1 13 . . 9 . 1 2 4 1 2 5 . 1 4 6 13 . . 2 2 7 4 4 11 7 8 5 . . . Potential Cave-ins 5 | . . . . . . . . . . . . . . . . . . . . . . . . . . . . . . 5 . . . . . . Cave-ins Triggered . | . . . . . . . . . . . . . . . . . . . . . . . . . . . . . . . . . . . . . Exploration Rate (%) 52 | 3 73 85 85 94 17 50 70 90 9 71 3 83 37 71 7 34 23 97 4 86 16 90 77 72 48 31 32 40 57 92 46 93 43 86 12 18 Regions Visited 36 Branch Regions 10 Pre-discovered Areas 8 | . 2 1 2 . 1 . . . . . . . 2 . . . . . . . . . . . . . . . . . . . . . . . Known Exits Taken 17 | . . 1 . . 1 . . . 1 . 1 . . . 1 . 1 . 1 . 1 1 . . 1 . 1 . 1 1 1 1 1 . 1 . Unknown Exits Taken 6 | 1 1 . 1 1 . . . . . . . . . . . . . . . . . . 1 1 . . . . . . . . . . . . Scrap Searched 3 | . . 2 . 1 . . . . . . . . . . . . . . . . . . . . . . . . . . . . . . . . Spaces Dug 285 | . 2 . 1 . 1 . 24 . 1 22 1 4 17 . . 1 4 27 . 7 3 10 . . 10 7 26 1 27 31 27 8 3 2 18 . Terrain Destroyed 680 | . 2 . 15 . 1 . 24 24 1 50 1 13 17 . . 1 4 44 . 7 10 10 . . 10 76 26 1 27 31 27 8 46 164 23 17 Melee 213 | . 2 . 1 . 1 . 24 . 1 5 1 4 17 . . 1 4 8 . 7 3 10 . . 10 7 26 1 27 11 27 8 3 . 4 . Projectile 201 | . . . 11 . . . . . . . . . . . . . . . . . . . . . . . . . . 20 . . 43 91 19 17 AOE 266 | . . . 3 . . . . 24 . 45 . 9 . . . . . 36 . . 7 . . . . 69 . . . . . . . 73 . . Terrain Rammed . | . . . . . . . . . . . . . . . . . . . . . . . . . . . . . . . . . . . . . Walls Destroyed . | . . . . . . . . . . . . . . . . . . . . . . . . . . . . . . . . . . . . . Machines Disabled . | . . . . . . . . . . . . . . . . . . . . . . . . . . . . . . . . . . . . . Actions | -11 -10 -10 -9 -9 -8 -8 -7 -7 -7 -7 -7 -7 -6 -6 -6 -6 -6 -6 -5 -5 -5 -5 -5 -5 -5 -5 -4 -4 -3 -3 -2 -2 -2 -2 -1 -1 --------- Run | Yrd Mat Min Mat Min Mat Gar Fac Was Fac Gar Fac Gar Fac Was Fac Gar Fac Gar Fac Gar Fac Ext Cet Arc Hub Gar Fac Gar Res Qua Res Tes Frg Gar Acc Com Total 34704 | 53 578 439 994 573 153 453 2991 372 368 1497 160 1064 1643 70 189 323 650 1462 200 1256 798 1989 588 200 293 324 1153 216 2260 1307 1653 1496 4728 1058 304 849 Wait 4575 | . 6 47 54 33 . 3 95 77 52 355 50 95 311 . 11 15 70 216 34 291 135 645 244 93 11 11 90 1 57 100 89 132 762 332 . 58 Move 26697 | 41 498 383 801 538 143 343 2695 270 298 978 109 876 1255 69 177 279 495 1050 152 833 584 1228 333 91 265 222 978 201 2081 1112 1455 1240 3263 573 260 528 Hop 118 | . 3 3 14 . . 1 13 . . 6 . 1 2 1 1 2 5 . 1 3 6 10 . . 2 1 6 4 4 11 5 8 5 . . . Pick Up 130 | 2 5 1 8 1 1 3 9 2 2 2 . 2 6 . . 1 5 2 1 1 2 . . . . . 4 . 11 5 7 2 28 6 3 8 Fast Attach 231 | 7 7 . 20 . 2 3 11 1 1 4 . 3 9 . . 1 3 7 1 9 1 5 5 . . 3 11 1 18 7 3 16 47 11 2 12 Attach 111 | . 2 . 4 . 1 3 4 2 1 1 . 6 4 . . 1 5 1 . 2 3 . . . . 3 4 . 3 1 3 2 32 3 4 16 Detach 78 | . 2 . 5 . . . 1 1 . 1 . 4 2 . . . 2 . . . . 2 . . . 2 2 . 2 3 2 4 29 1 1 12 Swap 243 | . 2 . 7 . . 2 13 12 1 7 . 11 7 . . 2 10 6 1 1 4 6 . 1 . 3 2 1 20 11 10 22 45 5 6 25 Drop 252 | 1 5 1 14 1 . 2 21 2 3 4 . 6 12 . . . 8 7 2 4 3 1 5 . . 3 12 1 14 14 8 18 47 12 2 19 Fire 1019 | 2 35 . 23 . . . . 5 . 12 . 34 3 . . 11 18 29 7 21 14 56 . 3 5 18 9 . . 10 27 14 371 105 21 166 Melee 771 | . 13 4 44 . 6 53 93 . 10 54 1 26 31 . . 11 14 34 . 26 6 20 1 9 10 21 34 7 47 29 43 38 68 9 5 4 Ram 2 | . . . . . . . . . . . . . . . . . . . . . . . . . . . . . . . . . 2 . . . Kick . | . . . . . . . . . . . . . . . . . . . . . . . . . . . . . . . . . . . . . Crush . | . . . . . . . . . . . . . . . . . . . . . . . . . . . . . . . . . . . . . Escape Stasis 402 | . . . . . . 38 33 . . 70 . . . . . . 13 105 . 30 37 15 . . . 37 . . 3 . . . 21 . . . Rewire 67 | . . . . . . 2 1 . . 3 . . 1 . . . 2 5 1 35 3 1 . 3 . . 1 . . 4 1 . 2 1 . 1 Trap 8 | . . . . . . . 2 . . . . . . . . . . . . . . . . . . . . . . . . . 6 . . . Miscellaneous . | . . . . . . . . . . . . . . . . . . . . . . . . . . . . . . . . . . . . . Route ------- -11/Scrapyard -10/Materials (discovered 3 exits: *Mat / [*Min] / [Sub]) -10/Mines (discovered 3 exits: *Mat x2 / [*Exi]) -9/Materials (discovered 4 exits: *Mat x2 / [*Min x2]) -9/Mines (discovered 2 exits: *Mat x2) -8/Materials -8/Garrison (discovered 3 exits: *Fac x3) -7/Factory (discovered 8 exits: *Fac x4 / *Sto x2 / *Low x2) -7/Waste -7/Factory (discovered 3 exits: Low x2 / Gar) -7/Garrison (discovered 3 exits: *Fac x3) -7/Factory -7/Garrison (discovered 3 exits: *Fac x3) -6/Factory (discovered 2 exits: *Fac x2) -6/Waste -6/Factory (discovered 2 exits: *Fac / Gar) -6/Garrison (discovered 3 exits: *Fac x3) -6/Factory -6/Garrison (discovered 3 exits: *Fac x3) -5/Factory (discovered 2 exits: Ext / Gar) -5/Garrison (discovered 3 exits: *Fac x3) -5/Factory (discovered 2 exits: [*Upp] / *Ext) -5/Extension (discovered 3 exits: *Fac x2 / *Cet) -5/Cetus (discovered 3 exits: *Fac x2 / [*Arc]) -5/Archives (discovered 2 exits: *Hub x2) -5/Hub_04(d) (discovered 2 exits: *Fac / Gar) -5/Garrison (discovered 3 exits: *Fac x3) -4/Factory (discovered 6 exits: *Res x3 / Upp x2 / Gar) -4/Garrison (discovered 3 exits: *Res x3) -3/Research (discovered 4 exits: *Res x2 / *Qua x2) -3/Quarantine -2/Research (discovered 5 exits: *Acc x3 / *Tes x2) -2/Testing (discovered 3 exits: *Acc / *Sec / *Frg) -2/Protoforge (discovered 2 exits: *Acc / Gar) -2/Garrison (discovered 3 exits: *Acc x3) -1/Access -1/Command (discovered 2 exits: Sur x2) By MAIN.C's Side History --------- Turn | Location | Event 6 | -11/Scrapyard | Discovered new exit (range 15) 78 | -11/Scrapyard | Entered Materials 227 | -10/Materials | Lost 3 parts (1p1n1w) 252 | -10/Materials | Core integrity fell below 50% 368 | -10/Materials | Discovered new exit (range 18) 391 | -10/Materials | Discovered new exit (range 6) 462 | -10/Materials | Discovered new exit (range 18) 481 | -10/Materials | Entered Mines 481 | -10/Mines | Discovered new exit (range 11) 484 | -10/Mines | Received a Mining Laser from a helpful Derelict 557 | -10/Mines | Build established: Scavenger-Mutant 568 | -10/Mines | Deemed a non-threat by the Exiles lab entrance 568 | -10/Mines | Discovered new exit (range 5) 622 | -10/Mines | Assembled infested the area 626 | -10/Mines | Learned location of Storage (-7) 627 | -10/Mines | Assisted by a Guerilla fighting off Assembled 633 | -10/Mines | A weapon hastily lodged in a ceiling crevice suddenly fell to the ground 674 | -10/Mines | Identified exit to Materials 686 | -10/Mines | Entered Materials 686 | -9/Materials | Evolved 2 slots: Propulsion x1, Utility x1 859 | -9/Materials | Lost 4 parts (1p2n1w) 976 | -9/Materials | Discovered new exit (range 18) 986 | -9/Materials | Central database locked down 992 | -9/Materials | Discovered new exit (range 5) 1026 | -9/Materials | Core integrity fell below 50% 1056 | -9/Materials | Learned location of Zion (-7) 1086 | -9/Materials | Lost 4 parts (1p3n) 1108 | -9/Materials | Learned Storage stockpile data 1130 | -9/Materials | Discovered new exit (range 15) 1182 | -9/Materials | Learned Storage security intel 1196 | -9/Materials | Discovered new exit (range 14) 1219 | -9/Materials | Learned Storage trap positions 1274 | -9/Materials | Entered Mines 1284 | -9/Mines | Found a hidden stash of uninstalled traps 1296 | -9/Mines | YI-UF0 nonchalantly dropped a Grenade Launcher on the ground 1313 | -9/Mines | Met a Derelict bent on vengeance 1319 | -9/Mines | Discovered new exit (range 12) 1385 | -9/Mines | Discovered new exit (range 13) 1390 | -9/Mines | Assisted by bots powering up and referring to "LRC-V3" 1419 | -9/Mines | Build established: Scavenger-Sprinter 1480 | -9/Mines | Entered Materials 1480 | -8/Materials | Accompanied by 3 allies 1480 | -8/Materials | Evolved 2 slots: Propulsion x1, Utility x1 1532 | -8/Materials | Identified exit to Garrison 1544 | -8/Materials | Entered Garrison 1544 | -8/Garrison | Accompanied by 2 allies 1573 | -8/Garrison | Lost 3 allies 1688 | -8/Garrison | Installed Relay Interface Framework 1690 | -8/Garrison | Triggered checkpoint 1693 | -8/Garrison | Garrison Relay disabled 1718 | -8/Garrison | Triggered checkpoint 1729 | -8/Garrison | Discovered new exit (range 64) 1729 | -8/Garrison | Discovered new exit (range 60) 1729 | -8/Garrison | Discovered new exit (range 20) 1753 | -8/Garrison | Expanded RIF knowledge: Hotswap 1756 | -8/Garrison | Triggered checkpoint 1756 | -8/Garrison | Garrison Relay disabled 1825 | -8/Garrison | Garrison Relay disabled 1832 | -8/Garrison | Entered Factory 1832 | -7/Factory | Evolved 2 slots: Utility x2 1833 | -7/Factory | Identified exit to Storage 1871 | -7/Factory | Identified exit to Factory 1884 | -7/Factory | Discovered new exit (range 13) 2083 | -7/Factory | Identified exit to Lower Caves 2141 | -7/Factory | Build established: Bothacker-Sprinter 2149 | -7/Factory | Learned Extension stockpile data 2247 | -7/Factory | Learned Hub_04(d) terminal intel 2355 | -7/Factory | Repaired Xenon Bombardment Thruster 2375 | -7/Factory | Learned 2 Proximity Caves zone layouts 2929 | -7/Factory | Fabricated Gatling Laser (x2) 3001 | -7/Factory | Manually triggered Chute Trap 3001 | -7/Factory | Sucked down chute 3001 | -7/Factory | Entered Waste 3007 | -7/Waste | Spotted C-40 Crusher 3010 | -7/Waste | Spotted C-40 Crusher 3010 | -7/Waste | Spotted C-40 Crusher 3014 | -7/Waste | Spotted C-40 Crusher 3022 | -7/Waste | Spotted C-40 Crusher 3027 | -7/Waste | Warlord forces began an assault 3041 | -7/Waste | Allies destroyed C-40 Crusher 3045 | -7/Waste | Allies destroyed C-40 Crusher 3049 | -7/Waste | Allies destroyed C-40 Crusher 3050 | -7/Waste | Allies destroyed C-40 Crusher 3072 | -7/Waste | Lost 5 allies 3078 | -7/Waste | Discovered new exit (range 16) 3084 | -7/Waste | Spotted C-40 Crusher 3108 | -7/Waste | Allies destroyed C-40 Crusher 3132 | -7/Waste | Build established: Hacker-Sprinter 3132 | -7/Waste | Lost 3 allies 3188 | -7/Waste | Entered Factory 3188 | -7/Factory | Accompanied by 11 allies 3297 | -7/Factory | Identified exit to Garrison 3345 | -7/Factory | Entered Garrison 3345 | -7/Garrison | Accompanied by 14 allies 3402 | -7/Garrison | Lost 3 allies 3479 | -7/Garrison | Garrison Relay disabled 3515 | -7/Garrison | Triggered checkpoint 3523 | -7/Garrison | Triggered checkpoint 3594 | -7/Garrison | Lost 3 allies 3749 | -7/Garrison | Triggered checkpoint 3751 | -7/Garrison | Triggered checkpoint 3792 | -7/Garrison | Build established: Commander-Sprinter 3802 | -7/Garrison | Discovered new exit (range 15) 3810 | -7/Garrison | Expanded RIF knowledge: Watcher Feeds 3835 | -7/Garrison | Triggered checkpoint 3838 | -7/Garrison | Garrison Relay disabled 3913 | -7/Garrison | Triggered checkpoint 3935 | -7/Garrison | Expanded RIF knowledge: Code Merge 3946 | -7/Garrison | Discovered new exit (range 10) 3990 | -7/Garrison | Lost 3 allies 4017 | -7/Garrison | Triggered checkpoint 4032 | -7/Garrison | Discovered new exit (range 16) 4101 | -7/Garrison | Triggered checkpoint 4114 | -7/Garrison | Garrison Relay disabled 4217 | -7/Garrison | Entered Factory 4217 | -7/Factory | Accompanied by 10 allies 4266 | -7/Factory | Identified exit to Garrison 4299 | -7/Factory | Entered Garrison 4299 | -7/Garrison | Accompanied by 13 allies 4311 | -7/Garrison | Expanded RIF knowledge: Code Merge 4323 | -7/Garrison | Rescued a captive Derelict 4323 | -7/Garrison | Rescued a captive Derelict 4367 | -7/Garrison | Triggered checkpoint 4405 | -7/Garrison | Triggered checkpoint 4427 | -7/Garrison | Triggered checkpoint 4431 | -7/Garrison | Lost 3 parts (1p2w) 4461 | -7/Garrison | Lost 8 allies 4464 | -7/Garrison | Discovered exit to Factory (range 13) 4471 | -7/Garrison | Triggered checkpoint 4559 | -7/Garrison | Core integrity fell below 50% 4571 | -7/Garrison | Garrison Relay disabled 4577 | -7/Garrison | Learned Factory security intel 4581 | -7/Garrison | Lost 5 allies 4654 | -7/Garrison | Garrison Relay disabled 4694 | -7/Garrison | Discovered exit to Factory (range 76) 4694 | -7/Garrison | Discovered exit to Factory (range 20) 4694 | -7/Garrison | Discovered exit to Factory (range 83) 4833 | -7/Garrison | Entered Factory 4833 | -6/Factory | Evolved 2 slots: Utility x2 4865 | -6/Factory | Build established: Sprinter 4869 | -6/Factory | Discovered new exit (range 16) 5119 | -6/Factory | Learned 2 Lower Caves zone layouts 5183 | -6/Factory | First assault squad dispatched 5199 | -6/Factory | Learned location of Upper Caves (-5) 5202 | -6/Factory | Discovered new exit (range 16) 5271 | -6/Factory | Learned Extension machine intel 5369 | -6/Factory | Repaired Biomechanical Wings 5433 | -6/Factory | Learned 2 Extension zone layouts 5486 | -6/Factory | Learned Hub_04(d) stockpile data 5549 | -6/Factory | Learned location of Proximity Caves (-4) 5563 | -6/Factory | Build established: Bothacker-Sprinter 5625 | -6/Factory | Manually triggered Chute Trap 5625 | -6/Factory | Sucked down chute 5625 | -6/Factory | Entered Waste 5634 | -6/Waste | Spotted C-40 Crusher 5635 | -6/Waste | Spotted C-40 Crusher 5640 | -6/Waste | 1 allies followed down the chute 5640 | -6/Waste | EMP discharged 5641 | -6/Waste | Spotted C-40 Crusher 5641 | -6/Waste | Spotted C-40 Crusher 5642 | -6/Waste | Discovered new exit (range 10) 5642 | -6/Waste | Spotted C-40 Crusher 5645 | -6/Waste | Entered Factory 5655 | -6/Factory | Discovered new exit (range 14) 5684 | -6/Factory | Identified exit to Garrison 5705 | -6/Factory | Entered Garrison 5705 | -6/Garrison | Accompanied by 3 allies 5707 | -6/Garrison | Discovered new exit (range 85) 5707 | -6/Garrison | Discovered new exit (range 54) 5707 | -6/Garrison | Discovered new exit (range 62) 5716 | -6/Garrison | Expanded RIF knowledge: Alert ID Control 5728 | -6/Garrison | Hacking Suite fried by hacking feedback 5740 | -6/Garrison | Garrison Relay disabled 5840 | -6/Garrison | Garrison Relay disabled 5851 | -6/Garrison | Entered Factory 5860 | -6/Factory | Lost 3 parts (1n1u1w) 6019 | -6/Factory | Build established: Botlord-Sprinter 6128 | -6/Factory | Fabricated Adv. System Restoration Module (x2) 6170 | -6/Factory | Identified exit to Garrison 6230 | -6/Factory | Entered Garrison 6230 | -6/Garrison | Accompanied by 8 allies 6236 | -6/Garrison | Expanded RIF knowledge: Threat Obfuscation 6282 | -6/Garrison | Triggered checkpoint 6282 | -6/Garrison | Triggered checkpoint 6295 | -6/Garrison | Spotted B-75 Beast 6311 | -6/Garrison | Destroyed 10 combat bots 6345 | -6/Garrison | Lost 3 allies 6368 | -6/Garrison | Triggered checkpoint 6387 | -6/Garrison | Garrison Relay disabled 6394 | -6/Garrison | Triggered checkpoint 6425 | -6/Garrison | Lost 3 parts (1n2u) 6458 | -6/Garrison | Triggered checkpoint 6466 | -6/Garrison | Triggered checkpoint 6498 | -6/Garrison | Found embedded Infiltrators 6507 | -6/Garrison | Discovered new exit (range 12) 6512 | -6/Garrison | Garrison Relay disabled 6515 | -6/Garrison | Lost 5 allies 6601 | -6/Garrison | Garrison Relay disabled 6612 | -6/Garrison | Garrison Relay disabled 6656 | -6/Garrison | Garrison Relay disabled 6666 | -6/Garrison | Triggered checkpoint 6693 | -6/Garrison | Discovered new exit (range 10) 6742 | -6/Garrison | Triggered checkpoint 6744 | -6/Garrison | Garrison Relay disabled 6799 | -6/Garrison | Spotted B-75 Beast 6838 | -6/Garrison | Discovered new exit (range 13) 6838 | -6/Garrison | Spotted B-86 Titan 6957 | -6/Garrison | Rewired B-90 Cyclops 6959 | -6/Garrison | Allies destroyed B-86 Titan 7004 | -6/Garrison | Entered Factory 7004 | -5/Factory | Accompanied by 10 allies 7004 | -5/Factory | Evolved 2 slots: Propulsion x1, Utility x1 7005 | -5/Factory | Identified exit to Extension 7095 | -5/Factory | Identified exit to Garrison 7095 | -5/Factory | Entered Garrison 7095 | -5/Garrison | Accompanied by 14 allies 7120 | -5/Garrison | Garrison Relay disabled 7125 | -5/Garrison | Triggered checkpoint 7182 | -5/Garrison | Spotted B-75 Beast 7190 | -5/Garrison | Lost 4 allies 7272 | -5/Garrison | Discovered new exit (range 50) 7272 | -5/Garrison | Discovered new exit (range 56) 7272 | -5/Garrison | Discovered new exit (range 19) 7281 | -5/Garrison | Expanded RIF knowledge: Autooverride 7284 | -5/Garrison | Lost 3 parts (3u) 7285 | -5/Garrison | Triggered checkpoint 7289 | -5/Garrison | Garrison Relay disabled 7300 | -5/Garrison | Garrison Relay disabled 7323 | -5/Garrison | Triggered checkpoint 7339 | -5/Garrison | Triggered checkpoint 7361 | -5/Garrison | Triggered checkpoint 7384 | -5/Garrison | Garrison Relay disabled 7567 | -5/Garrison | Triggered checkpoint 7595 | -5/Garrison | Triggered checkpoint 7601 | -5/Garrison | Garrison Relay disabled 7669 | -5/Garrison | Triggered checkpoint 7783 | -5/Garrison | Entered Factory 7783 | -5/Factory | Accompanied by 20 allies 7797 | -5/Factory | Discovered new exit (range 11) 8066 | -5/Factory | Discovered exit to Extension (range 15) 8092 | -5/Factory | Build established: Commander-Sprinter 8149 | -5/Factory | Entered Extension 8149 | -5/Extension | Accompanied by 16 allies 8150 | -5/Extension | Identified exit to Cetus 8151 | -5/Extension | Identified exit to Factory 8152 | -5/Extension | Loaded intel: 29 machine locations 8335 | -5/Extension | Spotted B-75 Beast 8346 | -5/Extension | Allies destroyed B-75 Beast 8391 | -5/Extension | Spotted B-75 Beast 8412 | -5/Extension | Allies destroyed B-75 Beast 8419 | -5/Extension | Rescued A7 8443 | -5/Extension | Lost 6 allies 8608 | -5/Extension | Learned 4 Factory zone layouts 8640 | -5/Extension | Learned Factory emergency access door positions 8642 | -5/Extension | Learned Factory trap positions 8643 | -5/Extension | Learned Research security intel 8652 | -5/Extension | Learned location of 1 exit from Proximity Caves 8846 | -5/Extension | Rescued a captive Derelict 8847 | -5/Extension | Rescued a captive Derelict 9013 | -5/Extension | Rescued a captive Derelict 9255 | -5/Extension | Entered Cetus 9255 | -5/Cetus | Accompanied by 29 allies (A7) 9260 | -5/Cetus | Acquired a Cetus Manufacturing Module code from A7 9281 | -5/Cetus | Spotted Cetus Guard 9282 | -5/Cetus | Spotted Cetus Guard 9285 | -5/Cetus | Allies destroyed Cetus Guard 9291 | -5/Cetus | Spotted Cetus Guard 9295 | -5/Cetus | Allies destroyed Cetus Guard 9298 | -5/Cetus | Allies destroyed Cetus Guard 9325 | -5/Cetus | Lost 7 allies 9346 | -5/Cetus | Started Cetus Manufacturing Module 9370 | -5/Cetus | Escorted A7 to Cetus Mainframe 9371 | -5/Cetus | Manufactured an Enhanced Grunt 9389 | -5/Cetus | Discovered new exit (range 15) 9396 | -5/Cetus | Manufactured an Enhanced Grunt 9414 | -5/Cetus | Spotted Cetus Guard 9421 | -5/Cetus | Manufactured an Enhanced Grunt 9444 | -5/Cetus | Spotted Cetus Guard 9444 | -5/Cetus | Spotted Cetus Guard 9446 | -5/Cetus | Manufactured an Enhanced Grunt 9452 | -5/Cetus | Allies destroyed Cetus Guard 9453 | -5/Cetus | Spotted Cetus Guard 9461 | -5/Cetus | Allies destroyed Cetus Guard 9465 | -5/Cetus | Allies destroyed Cetus Guard 9467 | -5/Cetus | Allies destroyed Cetus Guard 9471 | -5/Cetus | Manufactured an Enhanced Grunt 9495 | -5/Cetus | Lost 5 allies 9497 | -5/Cetus | Met Revision 17 9592 | -5/Cetus | Entered Archives 9592 | -5/Archives | Accompanied by 21 allies (A7) 9597 | -5/Archives | Received a hacking code to weaken MAIN.C 9633 | -5/Archives | Discovered new exit (range 15) 9634 | -5/Archives | Lost 4 allies 9638 | -5/Archives | Found Prototype Device 9638 | -5/Archives | Identified Exp. Thermal Shield 9645 | -5/Archives | Discovered new exit (range 16) 9738 | -5/Archives | Entered Hub_04(d) 9738 | -5/Hub_04(d) | Accompanied by 19 allies 9740 | -5/Hub_04(d) | Loaded intel: 15 terminal locations 9755 | -5/Hub_04(d) | Discovered exit to Factory (range 6) 9826 | -5/Hub_04(d) | Network Hub disabled 9828 | -5/Hub_04(d) | Network Hub disabled 9840 | -5/Hub_04(d) | Spotted Lightning 9843 | -5/Hub_04(d) | Spotted Lightning 9845 | -5/Hub_04(d) | Identified exit to Garrison 9845 | -5/Hub_04(d) | Entered Garrison 9850 | -5/Garrison | Lost 7 allies 9872 | -5/Garrison | Learned Factory security intel 9883 | -5/Garrison | Triggered checkpoint 9888 | -5/Garrison | Garrison Relay disabled 9973 | -5/Garrison | Rescued a captive Derelict 9974 | -5/Garrison | Rescued a captive Derelict 9987 | -5/Garrison | Triggered checkpoint 10029 | -5/Garrison | Discovered exit to Factory (range 47) 10029 | -5/Garrison | Discovered exit to Factory (range 33) 10029 | -5/Garrison | Discovered exit to Factory (range 67) 10033 | -5/Garrison | Triggered checkpoint 10055 | -5/Garrison | Expanded RIF knowledge: Autooverride 10060 | -5/Garrison | Entered Factory 10060 | -4/Factory | Evolved 2 slots: Utility x2 10061 | -4/Factory | Identified exit to Research 10062 | -4/Factory | Lost 7 parts (1p3n1u2w) 10063 | -4/Factory | Loaded intel: 84 trap records 10208 | -4/Factory | Build established: Botlord-Sprinter 10278 | -4/Factory | Fabricated Nuclear Pulse Array (x1) 10369 | -4/Factory | Found Exp. System Shield 10601 | -4/Factory | Discovered exit to Research (range 16) 10636 | -4/Factory | Identified exit to Upper Caves 10645 | -4/Factory | Identified exit to Garrison 10645 | -4/Factory | Entered Garrison 10649 | -4/Garrison | Expanded RIF knowledge: Command Fork 10672 | -4/Garrison | Discovered exit to Research (range 72) 10672 | -4/Garrison | Discovered exit to Research (range 58) 10672 | -4/Garrison | Discovered exit to Research (range 76) 10672 | -4/Garrison | Garrison Relay disabled 10686 | -4/Garrison | Learned Research security intel 10720 | -4/Garrison | Triggered checkpoint 10728 | -4/Garrison | Found embedded Infiltrators 10735 | -4/Garrison | Triggered checkpoint 10753 | -4/Garrison | Entered Research 10753 | -3/Research | Evolved 2 slots: Propulsion x1, Utility x1 10780 | -3/Research | Lost 7 parts (1p3n2u1w) 10953 | -3/Research | Revision forces began assault on 0b10 10986 | -3/Research | Fabricated Hyp. Gauss Cannon? 11013 | -3/Research | Met up with Revision 17++ 11205 | -3/Research | Discovered new exit (range 8) 11380 | -3/Research | Discovered new exit (range 5) 11381 | -3/Research | Discovered new exit (range 15) 11382 | -3/Research | Identified exit to Research 11385 | -3/Research | Identified exit to Quarantine 11419 | -3/Research | Spotted B-86 Titan 11453 | -3/Research | Research terminal network offline 11585 | -3/Research | Discovered exit to Research (range 8) 11657 | -3/Research | Entered Quarantine 11719 | -3/Quarantine | Found Alien Artifact 11747 | -3/Quarantine | Found Alien Artifact 11796 | -3/Quarantine | Learned Section 7 terminal intel 11837 | -3/Quarantine | Learned 12 Access zone layouts 11887 | -3/Quarantine | Learned location of 1 exit from Armory 11900 | -3/Quarantine | Learned Access security intel 11905 | -3/Quarantine | Learned location of 1 exit from Testing 11906 | -3/Quarantine | Learned Section 7 interactive machine intel 11931 | -3/Quarantine | Learned location of 2 exits from Research 11960 | -3/Quarantine | Learned Research machine intel 11972 | -3/Quarantine | Found Alien Energy Cannon 11972 | -3/Quarantine | Identified Core Cannon 12017 | -3/Quarantine | Cryocooling Duct disabled 12021 | -3/Quarantine | Cryocooling Duct disabled 12032 | -3/Quarantine | Ambient heat levels rising (+20) 12032 | -3/Quarantine | Non-combat units ordered to evacuate 12036 | -3/Quarantine | Ambient heat levels rising (+20) 12036 | -3/Quarantine | Combat units ordered to evacuate 12075 | -3/Quarantine | Identified exit to Garrison 12109 | -3/Quarantine | Found Alien Slashing Weapon 12109 | -3/Quarantine | Identified Sigix Broadsword 12118 | -3/Quarantine | Identified Core Reset Matrix 12118 | -3/Quarantine | Identified Subatomic Replicator 12136 | -3/Quarantine | Quarantine Guard activated 12174 | -3/Quarantine | Found Alien Artifact 12174 | -3/Quarantine | Identified Terrabomb 12174 | -3/Quarantine | Used Terrabomb 12197 | -3/Quarantine | Build established: Botlord-Scout 12212 | -3/Quarantine | Spotted Quarantine Guard 12236 | -3/Quarantine | Spotted Quarantine Guard 12238 | -3/Quarantine | Entered Research 12238 | -2/Research | Evolved 2 slots: Utility x1, Weapon x1 12239 | -2/Research | Identified exit to Access 12240 | -2/Research | Identified exit to Testing 12242 | -2/Research | Loaded intel: 121 machine locations 12332 | -2/Research | P-80 Master assimilated allied Swordsman 9a 12603 | -2/Research | Discovered exit to Access (range 5) 12609 | -2/Research | Lost 3 allies 12706 | -2/Research | Found Prototype Device 12706 | -2/Research | Identified Exp. Phase Shifter 12721 | -2/Research | Spotted B-90 Cyclops 12774 | -2/Research | Found Prototype Processor 12774 | -2/Research | Identified Exp. Signal Interpreter 12857 | -2/Research | Learned 4 Access zone layouts 12894 | -2/Research | Learned location of 1 exit from Research 12955 | -2/Research | Build established: Botlord-Ninja 12964 | -2/Research | Learned 12 Research zone layouts 13013 | -2/Research | Entered Testing 13014 | -2/Testing | Identified exit to Section 7 13093 | -2/Testing | Found Prototype Ballistic Cannon 13093 | -2/Testing | Identified Omega Cannon 13136 | -2/Testing | Found Prototype Energy Gun 13136 | -2/Testing | Identified Hyp. EM Gauss Rifle 13163 | -2/Testing | Found Prototype Energy Gun 13163 | -2/Testing | Identified Warp Gun 13180 | -2/Testing | Spotted Alpha 7 13187 | -2/Testing | Rewired 74-6UT(L) 13188 | -2/Testing | Rewired 5O-BD5(L) 13230 | -2/Testing | Found Prototype Processor 13230 | -2/Testing | Identified Spectral Analyzer 13240 | -2/Testing | Discovered exit to Access (range 27) 13261 | -2/Testing | Found Prototype Device 13261 | -2/Testing | Identified Exp. ECM Suite 13271 | -2/Testing | Found Prototype Ballistic Gun 13271 | -2/Testing | Identified Multirail 13280 | -2/Testing | Found Prototype Processor 13280 | -2/Testing | Identified Exp. Targeting Computer 13341 | -2/Testing | Found Prototype Device 13341 | -2/Testing | Identified 2N-1CE's Frost Array 13383 | -2/Testing | Spotted Striker 13387 | -2/Testing | Build established: Botlord-Scout 13395 | -2/Testing | Found Prototype Device 13395 | -2/Testing | Identified AEGIS Remote Shield 13426 | -2/Testing | Found Prototype Device 13426 | -2/Testing | Identified Exp. Transmission Jammer 13606 | -2/Testing | Found Prototype Ballistic Gun 13606 | -2/Testing | Identified Hyp. Multirail 13687 | -2/Testing | Build established: Botlord-Ninja 13705 | -2/Testing | Spotted Fortress 13731 | -2/Testing | Allies destroyed Fortress 13735 | -2/Testing | Found Prototype Device 13735 | -2/Testing | Identified Exp. Force Field 13737 | -2/Testing | Found Prototype Device 13737 | -2/Testing | Identified Thermal Barrier 13764 | -2/Testing | Discovered new exit (range 6) 13765 | -2/Testing | Identified exit to Protoforge 13774 | -2/Testing | Entered Protoforge 13774 | -2/Protoforge | Accompanied by 2 allies 13808 | -2/Protoforge | Superfortress began startup sequence 13879 | -2/Protoforge | Discovered exit to Access (range 8) 13924 | -2/Protoforge | Spotted Overlord 13925 | -2/Protoforge | Spotted Hotshot 13941 | -2/Protoforge | Found Prototype Device 13991 | -2/Protoforge | Identified exit to Garrison 13994 | -2/Protoforge | Spotted Immortal 13994 | -2/Protoforge | Spotted Immortal 13995 | -2/Protoforge | Spotted Immortal 14033 | -2/Protoforge | Garrison activated, responded to threat 14041 | -2/Protoforge | Identified Cep. Weapon Articulator 14134 | -2/Protoforge | Spotted Immortal 14134 | -2/Protoforge | Spotted Immortal 14177 | -2/Protoforge | Destroyed Immortal 14204 | -2/Protoforge | Spotted Decapitator 14204 | -2/Protoforge | Spotted Decapitator 14204 | -2/Protoforge | Spotted Decapitator 14227 | -2/Protoforge | Found Cep. Lightning Penetrator 14276 | -2/Protoforge | Spotted V013-s 14308 | -2/Protoforge | Destroyed Immortal 14334 | -2/Protoforge | Destroyed Immortal 14369 | -2/Protoforge | Destroyed Immortal 14433 | -2/Protoforge | Found Prototype Device 14433 | -2/Protoforge | Identified Crosscalibrator 14437 | -2/Protoforge | Found Exp. System Purifier 14438 | -2/Protoforge | Found Exp. System Purifier 14561 | -2/Protoforge | Destroyed Decapitator 14620 | -2/Protoforge | Found Exp. System Purifier 14774 | -2/Protoforge | First assault squad dispatched 14782 | -2/Protoforge | Destroyed Immortal 14786 | -2/Protoforge | Found Prototype Device 14786 | -2/Protoforge | Identified Exp. Cloaking Device 14788 | -2/Protoforge | Found Prototype Processor 14788 | -2/Protoforge | Identified Exp. Melee Analysis Suite 14873 | -2/Protoforge | Destroyed Decapitator 14955 | -2/Protoforge | Found Prototype Flight Unit 14955 | -2/Protoforge | Identified Cep. Fieldthrust Drive 14959 | -2/Protoforge | Found Faulty Cep. Fieldthrust Drive 15130 | -2/Protoforge | Spotted Decapitator 15130 | -2/Protoforge | Spotted Decapitator 15130 | -2/Protoforge | Spotted V656-p 15130 | -2/Protoforge | Spotted V829-j 15130 | -2/Protoforge | Spotted Decapitator 15145 | -2/Protoforge | Found Prototype Power Core 15145 | -2/Protoforge | Identified Cep. Zero-point Core 15156 | -2/Protoforge | Found Cep. Zero-point Core 15160 | -2/Protoforge | Found Faulty Cep. Zero-point Core 15302 | -2/Protoforge | Garrison activated, responded to threat 15302 | -2/Protoforge | Destroyed V013-s 15392 | -2/Protoforge | Spotted V444-r 15404 | -2/Protoforge | Destroyed V444-r 15436 | -2/Protoforge | Lost 3 allies 15476 | -2/Protoforge | Lost 3 parts (2u1w) 15483 | -2/Protoforge | Found Cep. Gyrokinetic System 15581 | -2/Protoforge | Found Prototype Ballistic Cannon 15581 | -2/Protoforge | Identified Cep. Heavy Railcannon 15586 | -2/Protoforge | Found Cep. Plasma Driver 15672 | -2/Protoforge | Destroyed 8 combat bots 15678 | -2/Protoforge | Found Prototype Hover Unit 15678 | -2/Protoforge | Identified Cep. Combat Aerolev Unit 15704 | -2/Protoforge | Build established: Mutant 15709 | -2/Protoforge | Found Faulty Cep. Helical Railcannon 15711 | -2/Protoforge | Found Faulty Cep. Helical Railcannon 15713 | -2/Protoforge | Found Prototype Energy Gun 15713 | -2/Protoforge | Identified Cep. Disintegration Ray 15720 | -2/Protoforge | Found Faulty Cep. Disintegration Ray 15936 | -2/Protoforge | Spotted V773-d 15951 | -2/Protoforge | Spotted Hotshot 15951 | -2/Protoforge | Spotted Hotshot 15952 | -2/Protoforge | Spotted Hotshot 15956 | -2/Protoforge | Destroyed Hotshot 15963 | -2/Protoforge | Spotted Hotshot 15977 | -2/Protoforge | Destroyed Hotshot 15985 | -2/Protoforge | Destroyed Hotshot 15989 | -2/Protoforge | Destroyed Hotshot 15998 | -2/Protoforge | Spotted Decapitator 15998 | -2/Protoforge | Spotted Decapitator 15998 | -2/Protoforge | Spotted Decapitator 15998 | -2/Protoforge | Spotted Decapitator 16002 | -2/Protoforge | Destroyed Decapitator 16011 | -2/Protoforge | Build established: Infiltrator-Mutant 16012 | -2/Protoforge | Destroyed Decapitator 16014 | -2/Protoforge | Destroyed Decapitator 16052 | -2/Protoforge | Found Prototype Storage 16052 | -2/Protoforge | Identified Cep. Chromion Battery 16056 | -2/Protoforge | Found Prototype Storage 16056 | -2/Protoforge | Identified Cep. Antigrav Storage Unit 16059 | -2/Protoforge | Found Cep. NT7 Matterbank 16065 | -2/Protoforge | Found Cep. Chromion Battery 16163 | -2/Protoforge | Destroyed Decapitator 16197 | -2/Protoforge | Spotted Immortal 16197 | -2/Protoforge | Spotted Immortal 16309 | -2/Protoforge | Found Faulty Cep. Countertargeting System 16311 | -2/Protoforge | Found Cep. Recoil Nullifier 16324 | -2/Protoforge | Found Cep. Countertargeting System 16345 | -2/Protoforge | Found Exp. Kinecellerator 16448 | -2/Protoforge | Spotted AP7-3 16448 | -2/Protoforge | Spotted AP7-3 16549 | -2/Protoforge | Core integrity fell below 50% 16560 | -2/Protoforge | Destroyed AP7-3 16578 | -2/Protoforge | Destroyed AP7-3 16625 | -2/Protoforge | Found Faulty Cep. Thermoelectric Network 16627 | -2/Protoforge | Found Faulty Cep. Thermoelectric Network 16629 | -2/Protoforge | Found Cld. Directed Potential Cannon 16723 | -2/Protoforge | Found Cep. Hypertargeting System 16727 | -2/Protoforge | Destroyed 8 combat bots 16730 | -2/Protoforge | Found Cep. Countertargeting System 16736 | -2/Protoforge | Lost 6 parts (1n5u) 16751 | -2/Protoforge | Build established: Mutant 16811 | -2/Protoforge | Found Prototype Hackware 16811 | -2/Protoforge | Identified Cep. Network Penetrator 16813 | -2/Protoforge | Spotted V958-t 16818 | -2/Protoforge | Spotted V080-g 16821 | -2/Protoforge | Found Cep. Network Penetrator 16869 | -2/Protoforge | Found Prototype Device 16869 | -2/Protoforge | Identified Cep. Beam Splitter 16872 | -2/Protoforge | Found Cep. RG22 Armor 16899 | -2/Protoforge | Found Faulty Cep. Plasma Driver 16906 | -2/Protoforge | Found Cep. Plasma Driver 17076 | -2/Protoforge | Destroyed 14 combat bots 17096 | -2/Protoforge | Entered Garrison 17114 | -2/Garrison | Phase Generator disabled 17165 | -2/Garrison | Found Adv. Powered Armor 17173 | -2/Garrison | Found Adv. Powered Armor 17176 | -2/Garrison | Found Adv. Powered Armor 17207 | -2/Garrison | Found Adv. Powered Armor 17212 | -2/Garrison | Found Adv. Powered Armor 17261 | -2/Garrison | Destroyed 10 combat bots 17380 | -2/Garrison | Triggered checkpoint 17395 | -2/Garrison | Triggered checkpoint 17438 | -2/Garrison | Garrison Relay disabled 17523 | -2/Garrison | Expanded RIF knowledge: Program Shield 17606 | -2/Garrison | Triggered checkpoint 17622 | -2/Garrison | Spotted B-90 Cyclops 17628 | -2/Garrison | Destroyed B-90 Cyclops 17628 | -2/Garrison | Triggered checkpoint 17694 | -2/Garrison | Triggered checkpoint 17734 | -2/Garrison | Garrison Relay disabled 17795 | -2/Garrison | Discovered exit to Access (range 9) 18131 | -2/Garrison | Found Relay Coupler [Proto] 18211 | -2/Garrison | Discovered exit to Access (range 57) 18211 | -2/Garrison | Discovered exit to Access (range 26) 18211 | -2/Garrison | Discovered exit to Access (range 20) 18252 | -2/Garrison | Triggered checkpoint 18252 | -2/Garrison | Triggered checkpoint 18386 | -2/Garrison | Triggered checkpoint 18396 | -2/Garrison | Garrison Relay disabled 18424 | -2/Garrison | Triggered checkpoint 18428 | -2/Garrison | Garrison Relay disabled 18454 | -2/Garrison | Lost 4 allies 18565 | -2/Garrison | Found embedded Infiltrators 18613 | -2/Garrison | Entered Access 18613 | -1/Access | Accompanied by 6 allies 18613 | -1/Access | Evolved 2 slots: Power x2 18711 | -1/Access | Build established: Botlord-Mutant 18779 | -1/Access | Lost 3 parts (2p1w) 18863 | -1/Access | First assault squad dispatched 18918 | -1/Access | Identified exit to Command 18935 | -1/Access | Found Quantum Capacitor 18938 | -1/Access | Lost 6 allies 19108 | -1/Access | Entered Command 19206 | -1/Command | Lost 3 allies 19256 | -1/Command | Spotted Combat Programmer 19258 | -1/Command | Spotted M Guard 19264 | -1/Command | Spotted Combat Programmer 19277 | -1/Command | Destroyed Combat Programmer 19279 | -1/Command | Destroyed Combat Programmer 19281 | -1/Command | Spotted M Guard 19289 | -1/Command | Destroyed M Guard 19293 | -1/Command | Destroyed M Guard 19293 | -1/Command | All MAIN.C guards destroyed 19358 | -1/Command | First assault squad dispatched 19372 | -1/Command | Met MAIN.C 19379 | -1/Command | System corruption reached 10% 19382 | -1/Command | 0b10 Conduit disabled 19393 | -1/Command | Hacked MAIN.C using A7's code 19410 | -1/Command | Destroyed MAIN.C Shell 19411 | -1/Command | Surrendered to MAIN.C 19411 | -1/Command | Loaded intel: 59 machine locations 19411 | -1/Command | Loaded intel: 117 trap records 19411 | -1/Command | Identified exit to Surface 19411 | -1/Command | Discovered exit to Surface (range 42) 19411 | -1/Command | Discovered exit to Surface (range 83) 19563 | -1/Command | Found Prototype Reactor 19563 | -1/Command | Identified Singularity Reactor 19582 | -1/Command | Found Exp. System Purifier 19593 | -1/Command | Found Prototype Device 19593 | -1/Command | Identified Exp. Weapon Cycler 19596 | -1/Command | Found Prototype Device 19596 | -1/Command | Identified Exp. Focal Shield 19603 | -1/Command | MAIN.C activated Command garrisons 19641 | -1/Command | Unknown forces attacked Command 19651 | -1/Command | Spotted EQ-001 19655 | -1/Command | Spotted EQ-000 19656 | -1/Command | Destroyed EQ-001 19664 | -1/Command | Spotted EQ-002 19668 | -1/Command | Destroyed EQ-000 19672 | -1/Command | Used Subatomic Replicator to replicate Cep. Disintegration Ray 19678 | -1/Command | Destroyed EQ-002 19705 | -1/Command | Build established: Hacker-Mutant 19738 | -1/Command | Spotted EQ-018 19738 | -1/Command | Spotted EQ-019 19741 | -1/Command | Destroyed EQ-019 19743 | -1/Command | Spotted EQ-020 19750 | -1/Command | Destroyed EQ-020 19858 | -1/Command | Spotted EQ-040 19858 | -1/Command | Spotted EQ-038 19858 | -1/Command | Spotted EQ-041 19858 | -1/Command | Spotted EQ-039 19859 | -1/Command | Destroyed EQ-039 19863 | -1/Command | Destroyed EQ-041 19865 | -1/Command | Destroyed EQ-038 19868 | -1/Command | Destroyed EQ-040 19896 | -1/Command | Spotted EQ-030 19897 | -1/Command | Lost 6 allies 19911 | -1/Command | Destroyed EQ-030 19939 | -1/Command | Lost 4 allies 19956 | -1/Command | Spotted EQ-050 19959 | -1/Command | Destroyed EQ-050 19970 | -1/Command | Spotted EQ-062 19970 | -1/Command | Spotted EQ-061 19971 | -1/Command | Destroyed EQ-061 19973 | -1/Command | Destroyed EQ-062 19977 | -1/Command | Spotted EQ-060 19993 | -1/Command | Spotted EQ-066 19998 | -1/Command | Destroyed EQ-066 19999 | -1/Command | Spotted EQ-043 20007 | -1/Command | Destroyed EQ-043 20013 | -1/Command | Spotted EQ-082 20013 | -1/Command | Spotted EQ-073 20014 | -1/Command | Lost 3 allies 20017 | -1/Command | Destroyed EQ-073 20019 | -1/Command | Destroyed EQ-082 20050 | -1/Command | Found Prototype Processor 20050 | -1/Command | Identified Exp. Core Analyzer 20080 | -1/Command | Spotted EQ-084 20080 | -1/Command | Spotted EQ-085 20089 | -1/Command | Spotted EQ-070 20091 | -1/Command | Destroyed EQ-070 20121 | -1/Command | Spotted EQ-091 20124 | -1/Command | Spotted EQ-102 20138 | -1/Command | Destroyed EQ-091 20154 | -1/Command | Spotted EQ-093 20159 | -1/Command | Destroyed EQ-093 20167 | -1/Command | Destroyed EQ-102 20187 | -1/Command | Destroyed EQ-110 20194 | -1/Command | Spotted EQ-137 20199 | -1/Command | Destroyed EQ-137 20212 | -1/Command | Spotted EQ-098 20214 | -1/Command | Destroyed EQ-098 20216 | -1/Command | Spotted EQ-114 20218 | -1/Command | Destroyed EQ-114 20228 | -1/Command | Lost 5 allies 20243 | -1/Command | Spotted EQ-121 20245 | -1/Command | Destroyed EQ-121 20254 | -1/Command | Spotted EQ-129 20256 | -1/Command | Spotted EQ-117 20257 | -1/Command | Destroyed EQ-129 20260 | -1/Command | Destroyed EQ-117 20261 | -1/Command | Attackers retreated from Command 20261 | *** | Fortifying 0b10! Last Messages --------------- 20257_ EQ-129 suffers critical hit (Meltdown). 20257_ Adv. KE Penetrator melted. 20257_ Prototype Processor melted. 20257_ Imp. Quantum Reactor melted. 20257_ MAIN.C reaction time slowed by virus. 20258_ Critical hit (Burn: +37). 20259_ MAIN.C reaction time slowed by virus. 20260_ EQ-117 suffers critical hit (Meltdown). 20261_ ALERT: Enemy forces retreating. MAIN.C: I admit your assistance was pivotal here. It looks like I was right to trust you. This attack appears to have been designed to merely test our defenses, although it was nearly effective enough to force me to take the conflict to the next level. Investigating the origins of these bots should be one of our highest priorities... [Achievement: Stronghold] [Achievement: Renaissance Bot] Map ----- +----------------------------------------------------+ | ????# #"## #???????????????????????????????????? | | ????# #### #???????????????????????????????????? | | ????# ## ##??????????????????????????????????? | | ????# < ## "#??????????????????????????????????? | | ????# ## #########???????????????????????????? | | ????####### #?# #???????????????????????????? | | ??????????# #?# #???????????????????????????? | | ??????????# #?# " #?########################### | | ########??# #?# #?#?????????????????????????# | | # #??# #?# ]#?#?#######################?# | | # #??# #?## ##?#?#""""""" " % ### | | # #??# #??# #?#?#"" " !]! %% #?# | | + # # ^#??# #?#?#""""" =% ### | | # ## #??" #?#?#"" " """ ! ]!"%% | | # %"""" #?#?#" " " !=[==%["== | | #+#+### # #?#?#"" "" *[%%[!%%% | | # % [! #?#?#"" """ %!*%![### | | + % *%! #?#?# " " [ !==!#?# | | # ! =!= ###?# %% ![ *### | | # =!*[[ # #?# % M = #?# | | # =!%*%] # #?# !s "" #?# | | # [[! = #?# % [ !%% " "" #?# | | # """ " !! #?# [%%! *! "" % "#?# | | # """T"""% %!% = #?#%[[%* ! = %% " #?# | | # ######"###" # #####% ![== % "!"% " #?# | | # # !%= %@ *%% %= "" " #?# | | + + # !== ! %[= " " " "" #?# | | # # #%% % % =* %%%*" " #?# | | # # # ##### [= % """ " " #?# | | # # % # #### #?# =% !"! """" """#?# | | # # ##?# " " " " #?# | | # ########### #?#######################?# | | # ############ #?????????????????????????# | | # # """" #### ########################### | | # # """" #??#######?????????????????????????? | | # # """" #??????????????????????????????????? | | / # """" #??????????????????????????????????? | | # + #??????????????????????????????????? | | # # #??????????????????????????????????? | | # # #??????????????????????????????????? | | # # ! #??????????????????????????????????? | | # #######+###??????????????????????????????????? | | # #?????# #????????????????????????????????????? | | # ###???# #????????????????????????????????????? | | #???# #????????????????????????????????????? | | #???# #????????????????????????????????????? | | #???# #????????????????????????????????????? | | #???# #????????????????????????????????????? | | #???# #????????????????????????????????????? | | #???# #????????????????????????????????????? | +----------------------------------------------------+ Best States ------------- Heat Dissipation 152 Energy Generation 75 Energy Capacity 1900 Matter Stores 300 Matter Capacity 300 Sight Range 24 Robot Scan Range 16 Terrain Scan Range 16 Terrain Scan Density 10 Jamming Range 22 Cloak Strength 4 Armor Coverage 2700 Resistance: KI 30 Resistance: TH 75 Resistance: EM 25 Propulsion Shielding 90 Utility Shielding 66 Evasion (%) 77 Melee Accuracy 12 Core Analysis 8 Recoil Reduction 6 Kinecelleration 66 Offensive Hacking 50 Defensive Hacking 30 Relay Coupler Types 8 Relay Coupler Value 358 Authchip Count 1 Trap Extractor Capacity 8 Item Schematics ----------------- Bore Cannon | -9/Materials | Scanalyzed Lgt. Angular Momentum Engine | -7/Factory | Hacked Imp. Melee Analysis Suite | -7/Factory | Hacked Lrn. Sensor Array | -7/Factory | Downloaded Hyp. Coil Gun | -7/Factory | Hacked Imp. Dynamic Insulation System | -7/Factory | Hacked Adv. System Restoration Module | -7/Factory | Scanalyzed Hvy. Assault Rifle | -7/Factory | Extracted Proton Missile Launcher | -7/Factory | Extracted Hyp. Gauss Cannon | -6/Factory | Scanalyzed Fusion Compressor | -6/Factory | Extracted Adv. Targeting Computer | -6/Factory | Extracted Imp. Power Shielding | -6/Factory | Extracted Nuclear Pulse Array | -5/Factory | Extracted Exp. Utility Shielding | -5/Factory | Hacked Adv. Transmission Jammer | -5/Extension | Hacked Electron Diverter | -2/Testing | Archive Prc. Energy Filter | -2/Testing | Archive Cld. Field Propulsion Drive | -2/Testing | Archive Imp. Matter Neutralizer | -2/Testing | Archive Imp. Q-thruster | -2/Testing | Archive Imp. KE Penetrator | -2/Testing | Archive Lrn. Phase Cannon | -2/Testing | Archive Molecular Scythe | -2/Testing | Archive Exp. Shield Generator | -2/Testing | Archive Adv. Micro-nuke Launcher | -2/Protoforge | Archive Enh. Biometal Leg | -2/Protoforge | Archive Point Singularity Launcher | -2/Protoforge | Archive Exp. Flexi-carbon Leg | -2/Protoforge | Archive Thermal Barrier | -2/Protoforge | Archive Plasma Lance | -2/Protoforge | Archive Adv. Plasma Rifle | -2/Protoforge | Archive Cld. Impulse Thruster | -2/Protoforge | Archive Exp. Q-thruster | -2/Protoforge | Archive Hellfire Missile Launcher | -2/Protoforge | Archive Plasma Sword | -2/Protoforge | Archive Adv. Quantum Shading Machine | -2/Protoforge | Archive Cld. Nuclear Pulse Thruster | -2/Protoforge | Archive Robot Schematics ------------------ H-66 Slayer | -6/Factory | Hacked B-60 Warrior | -5/Extension | Hacked E-15 Imp | -3/Quarantine | Archive R-10 Processor | -3/Quarantine | Archive A-02 Transporter | -2/Testing | Archive R-06 Scavenger | -2/Testing | Archive S-43 Plague | -2/Protoforge | Archive G-73 Enforcer | -2/Protoforge | Archive B-74 Champion | -2/Protoforge | Archive Fabricated ------------ Gatling Laser | x2 | -7/Factory | Preloaded Adv. System Restoration Module | x2 | -6/Factory | Authchip Nuclear Pulse Array | x1 | -4/Factory Hyp. Gauss Cannon | x2 | -3/Research | Authchip Repaired ---------- Xenon Bombardment Thruster | 46% | -7/Factory Biomechanical Wings | 10% | -6/Factory Studied --------- Flight Unit | -9/Materials | Hacked Cesium-ion Thruster | -7/Factory | Hacked Imp. Datajack | -7/Factory | Hacked Great Axe | -7/Factory | Hacked Mic. Nuclear Core | -7/Factory | Hacked Xenon Bombardment Thruster | -7/Factory | Hacked Gatling Laser | -7/Factory | Hacked Chainsword | -7/Factory | Hacked Missile Launcher | -7/Factory | Hacked Lgt. Deuterium Engine | -6/Factory | Hacked Falx | -6/Factory | Hacked Imp. Remote Datajack | -4/Factory | Hacked Field Propulsion Drive | -3/Research | Hacked Impulse Thruster Array | -3/Research | Hacked Adv. Datajack | -3/Research | Hacked Hyp. Gauss Cannon | -3/Research | Hacked Lgt. Particle Reactor | -3/Research | Hacked Q-thruster | -3/Research | Hacked Mic. Antimatter Reactor | -3/Research | Hacked Alien Tech Used ----------------- Core Cannon Sigix Broadsword Terrabomb Subatomic Replicator Achievements -------------- Renaissance Bot Stronghold Challenges ------------ None Game ------ Seed SixMicroSuit Manual? 0 Play Time 07:42:21 Cumulative 883.8 hours Start 2026.01.16 @ 20:58:04 End 2026.01.20 @ 19:09:56 Sessions 8 Manual Loads 0 Difficulty Rogue Special Mode None Game No. 343 Rogue 343 Adventurer 0 Explorer 0 Win Type 8 Total 92 Types 44/6/16/8/7/1/1/3/1/5 Lore% 98 Gallery% 91 Achievement% 86 Wizard Run 0 Options --------- Layout 1 ASCII 0 Keyboard 0 Movement Numpad Keybinds 0 Fullscreen 1 Font 24/Smallcaps Map View 50x35 Zoom Use 0% Tactical HUD 1 Map Filters NONE Filters NONE Steam 1 RUN: 57cbbd39-4491-44b2-a365-ba0f3dfcc3a5